Transaction Reference,Supplier Name,Line Value,Department,Category,Transaction Date,Year/Period,SME,Costs split between Babergh and Mid Suffolk District Councils Y/N,% of transaction apportioned to Mid Suffolk District Council
20028135,AARON SERVICES LTD,"33,706.37",Current Liabilities,Cert IBS Creditors Holding ac,11-Oct-22,2223/07,SME,N,
20028158,AARON SERVICES LTD,"14,475.04",Current Liabilities,Cert IBS Creditors Holding ac,18-Oct-22,2223/07,SME,N,
20028168,AARON SERVICES LTD,"11,057.61",Current Liabilities,Cert IBS Creditors Holding ac,31-Oct-22,2223/07,SME,N,
10051281,ACADEMY BUILDING CONTRACTS LTD,529.19,"Fences, Gates and Walls",BMBS Repairs Work,30-Sep-22,2223/07,SME,N,
10051282,ACADEMY BUILDING CONTRACTS LTD,314.43,Building Services,Repairs,30-Sep-22,2223/07,SME,N,
10051283,ACADEMY BUILDING CONTRACTS LTD,366.84,"Fences, Gates and Walls",BMBS Repairs Work,30-Sep-22,2223/07,SME,N,
10051614,ACADEMY BUILDING CONTRACTS LTD,366.84,"Fences, Gates and Walls",Repairs,30-Sep-22,2223/07,SME,N,
10051615,ACADEMY BUILDING CONTRACTS LTD,471.65,"Fences, Gates and Walls",Repairs,30-Sep-22,2223/07,SME,N,
10051616,ACADEMY BUILDING CONTRACTS LTD,471.65,"Fences, Gates and Walls",Repairs,30-Sep-22,2223/07,SME,N,
10051641,ACADEMY BUILDING CONTRACTS LTD,314.44,Building Services,Repairs,14-Oct-22,2223/07,SME,N,
10051642,ACADEMY BUILDING CONTRACTS LTD,"2,070.28","Fences, Gates and Walls",Repairs,14-Oct-22,2223/07,SME,N,
10051643,ACADEMY BUILDING CONTRACTS LTD,"1,542.15","Fences, Gates and Walls",Repairs,14-Oct-22,2223/07,SME,N,
10051644,ACADEMY BUILDING CONTRACTS LTD,"1,391.27","Fences, Gates and Walls",Repairs,14-Oct-22,2223/07,SME,N,
10051646,ACADEMY BUILDING CONTRACTS LTD,"1,374.43","Fences, Gates and Walls",Repairs,14-Oct-22,2223/07,SME,N,
10051682,ACADEMY BUILDING CONTRACTS LTD,359.48,Building Services,Repairs,14-Oct-22,2223/07,SME,N,
10051809,ACADEMY BUILDING CONTRACTS LTD,564.49,Building Services,Repairs,21-Oct-22,2223/07,SME,N,
10051450,AE WHITE SURFACING,398.57,Insurance Claims,Misc Premises Costs,30-Sep-22,2223/07,SME,N,
10051801,AE WHITE SURFACING,"5,460.00",Insurance Claims,Misc Premises Costs,20-Oct-22,2223/07,SME,N,
10051428,ALPHETON GARAGE LTD,350,Taxi & Private Hire Licensing,Contracted Services,05-Oct-22,2223/07,SME,N,
10051257,BEN BURGESS GARDEN EQUIPMENT,"2,500.00",Public Realm TransitionProject,Plant & Vehicle - Other costs,28-Sep-22,2223/07,SME,N,
10051716,BEN BURGESS GARDEN EQUIPMENT,"21,850.00",Public Realm TransitionProject,Plant & Vehicle - Other costs,17-Oct-22,2223/07,SME,N,
10051746,BINDER LTD,311,Sewage Treatment Works,Contracted Services,17-Oct-22,2223/07,SME,N,
10051871,BINDER LTD,718.62,Sewage Treatment Works,Improvements,25-Oct-22,2223/07,SME,N,
10051873,BINDER LTD,469.42,Sewage Treatment Works,Contracted Services,25-Oct-22,2223/07,SME,N,
10051924,BINDER LTD,311,Sewage Treatment Works,Contracted Services,26-Oct-22,2223/07,SME,N,
10051925,BINDER LTD,311,Sewage Treatment Works,Contracted Services,26-Oct-22,2223/07,SME,N,
10051416,BOTTOMLINE TECHNOLOGIES,701.21,ICT,Software Licnse (Line of Bus) ,30-Sep-22,2223/07,LGE,Y,50%
10050837,BOWER FULLER,"3,985.73",Wenham Depot,Repairs,31-Aug-22,2223/07,SME,Y,50%
10051531,BOWER FULLER,"2,398.90",Sheltered Accommodation,Fire Prevention,30-Sep-22,2223/07,SME,N,
10051532,BOWER FULLER,247.26,Business Cont/Emergency Plan,Fire Prevention,30-Sep-22,2223/07,SME,N,
10051532,BOWER FULLER,247.26,Tenancy Services,Fire Prevention,30-Sep-22,2223/07,SME,N,
10051532,BOWER FULLER,494.52,Temporary Accommodation,Fire Prevention,30-Sep-22,2223/07,SME,N,
10051533,BOWER FULLER,229.94,Sheltered Accommodation,Fire Prevention,30-Sep-22,2223/07,SME,N,
10051533,BOWER FULLER,25.52,Temporary Accommodation,Fire Prevention,30-Sep-22,2223/07,SME,N,
10051533,BOWER FULLER,139.78,Tenancy Services,Fire Prevention,30-Sep-22,2223/07,SME,N,
10051534,BOWER FULLER,297.6,Sheltered Accommodation,Fire Prevention,30-Sep-22,2223/07,SME,N,
10051538,BOWER FULLER,594.12,Tenancy Services,Fire Prevention,30-Sep-22,2223/07,SME,N,
10051539,BOWER FULLER,297.58,Sheltered Accommodation,Fire Prevention,30-Sep-22,2223/07,SME,N,
10051540,BOWER FULLER,"2,000.34",Sheltered Accommodation,Fire Prevention,30-Sep-22,2223/07,SME,N,
10051544,BOWER FULLER,278.9,Assets & Development,Repairs,30-Sep-22,2223/07,SME,N,
10051548,BOWER FULLER,545.02,Sheltered Accommodation,Repairs,30-Sep-22,2223/07,SME,N,
10051549,BOWER FULLER,"1,165.10",Sheltered Accommodation,Fire Prevention,30-Sep-22,2223/07,SME,N,
10051337,AQUASAMPLERS,410,Water Sampling,Sampling & Analysis,31-Aug-22,2223/07,SME,N,
10051347,CASTONS,"9,352.15",Hadleigh Pool Refurb,Prof & Consultancy Fees,30-Sep-22,2223/07,SME,N,
10051568,CENTRAL TYRE LTD,300.12,Street & Major Road Cleansing,Plant & Vehicle - Other costs,28-Sep-22,2223/07,SME,N,
10051744,CENTRAL TYRE LTD,293.68,Street & Major Road Cleansing,Plant & Vehicle - Other costs,18-Oct-22,2223/07,SME,N,
10051572,CHEQUERS HOTEL LTD,"1,080.00",Homelessness Private Sector,B&B Costs,03-Oct-22,2223/07,SME,N,
10051573,CHEQUERS HOTEL LTD,"2,160.00",Homelessness Private Sector,B&B Costs,03-Oct-22,2223/07,SME,N,
10051118,CLARKE FENCING LTD,"29,368.33",Building Services,Repairs,22-Sep-22,2223/07,SME,N,
10051432,CLARKE FENCING LTD,988.3,Street & Major Road Cleansing,Plant & Vehicle - Other costs,04-Oct-22,2223/07,SME,N,
10051633,CLARKE FENCING LTD,"3,370.22",Open Spaces,Horticultural Purchases,11-Oct-22,2223/07,SME,N,
10051677,CLARKE FENCING LTD,464,Street & Major Road Cleansing,Plant & Vehicle - Other costs,14-Oct-22,2223/07,SME,N,
10051880,CLARKE FENCING LTD,"1,934.14",Street & Major Road Cleansing,Plant & Vehicle - Other costs,20-Oct-22,2223/07,SME,N,
10051505,COLCHESTER BOROUGH COUNCIL,"2,357.83",Lettings & Allocations,Contracted Services,07-Oct-22,2223/07,SME,N,
10051169,D W ADAMS LTD,622,Building Services,Repairs,27-Sep-22,2223/07,SME,N,
10051188,D W ADAMS LTD,"1,346.00",Council House Adaptions,Improvements,27-Sep-22,2223/07,SME,N,
10051190,D W ADAMS LTD,622,Building Services,Repairs,27-Sep-22,2223/07,SME,N,
10051214,D W ADAMS LTD,"5,387.00",Council House Adaptions,Improvements,28-Sep-22,2223/07,SME,N,
10051256,D W ADAMS LTD,"1,709.00",Council House Adaptions,Improvements,29-Sep-22,2223/07,SME,N,
10051268,D W ADAMS LTD,273,Disabled Facilities (Revenue),Repairs,29-Sep-22,2223/07,SME,N,
10051652,D W ADAMS LTD,"4,722.00",Council House Adaptions,Improvements,14-Oct-22,2223/07,SME,N,
10051787,DOLPHIN STAIRLIFTS (EAST ANGLIA) LTD,"3,403.00",Mand Disabled Facilities Grant,Grants,20-Oct-22,2223/07,SME,N,
10051497,ENER-G SWITCH2 LTD,362.82,Temporary Accommodation,Repairs,07-Oct-22,2223/07,SME,N,
10051724,ENGLISH SECURITY,417.45,Sheltered Accommodation,Fire Prevention,07-Oct-22,2223/07,SME,N,
10051096,ENVIROVENT LTD,"1,426.36",Insulation Imps,Improvements,14-Sep-22,2223/07,SME,N,
10051117,ENVIROVENT LTD,539,Insulation Imps,BMBS Repairs Work,15-Sep-22,2223/07,SME,N,
10051251,ENVIROVENT LTD,460,Insulation Imps,Improvements,16-Sep-22,2223/07,SME,N,
10051253,ENVIROVENT LTD,709,Insulation Imps,BMBS Repairs Work,20-Sep-22,2223/07,SME,N,
10051291,ENVIROVENT LTD,856.56,Insulation Imps,BMBS Repairs Work,26-Sep-22,2223/07,SME,N,
10051301,ENVIROVENT LTD,958,Insulation Imps,Improvements,27-Sep-22,2223/07,SME,N,
10051302,ENVIROVENT LTD,867.56,Building Services,Repairs,27-Sep-22,2223/07,SME,N,
10051350,ENVIROVENT LTD,787.05,Insulation Imps,Improvements,28-Sep-22,2223/07,SME,N,
10051563,ENVIROVENT LTD,"1,549.92",Insulation Imps,Improvements,05-Oct-22,2223/07,SME,N,
10051581,ENVIROVENT LTD,958,Insulation Imps,Improvements,06-Oct-22,2223/07,SME,N,
10051703,ENVIROVENT LTD,460,Insulation Imps,BMBS Repairs Work,12-Oct-22,2223/07,SME,N,
10051704,ENVIROVENT LTD,779.9,Building Services,Repairs,12-Oct-22,2223/07,SME,N,
10051750,ENVIROVENT LTD,460,Insulation Imps,Improvements,14-Oct-22,2223/07,SME,N,
10051774,ENVIROVENT LTD,709,Building Services,Repairs,17-Oct-22,2223/07,SME,N,
10051587,FELGAINS CARE CENTRE,"6,966.00",Council House Adaptions,Improvements,27-Sep-22,2223/07,SME,N,
10051588,FELGAINS CARE CENTRE,"9,385.00",Council House Adaptions,Improvements,27-Sep-22,2223/07,SME,N,
10051157,FELLBRIDGE BUILDING SERVICES,414.6,Building Services,Repairs,26-Sep-22,2223/07,SME,N,
10051158,FELLBRIDGE BUILDING SERVICES,"1,034.91",Building Services,Repairs,26-Sep-22,2223/07,SME,N,
10051464,FELLBRIDGE BUILDING SERVICES,"6,414.61",Building Services,Repairs,06-Oct-22,2223/07,SME,N,
10051478,FELLBRIDGE BUILDING SERVICES,"5,150.50",Building Services,Repairs,06-Oct-22,2223/07,SME,N,
10051789,FELLBRIDGE BUILDING SERVICES,377.01,Building Services,Repairs,20-Oct-22,2223/07,SME,N,
10051796,FELLBRIDGE BUILDING SERVICES,"2,812.80",Building Services,Repairs,20-Oct-22,2223/07,SME,N,
10051797,FELLBRIDGE BUILDING SERVICES,"4,556.62",Building Services,Repairs,20-Oct-22,2223/07,SME,N,
10051344,FORE-MOST GARAGE DOORS LTD,"4,349.20",Building Services,Repairs,30-Sep-22,2223/07,SME,N,
10051430,GHB ROOFING,"60,195.80",Roofing,Repairs,30-Sep-22,2223/07,SME,N,
10051586,GHB ROOFING,"4,881.00",Roofing,Repairs,30-Sep-22,2223/07,SME,N,
10051589,GHB ROOFING,"9,657.00",Roofing,Repairs,30-Sep-22,2223/07,SME,N,
10051216,HAYES DIGGINS BUILDERS,950,Building Services,Repairs,28-Sep-22,2223/07,SME,N,
10051552,HAYES DIGGINS BUILDERS,"3,500.00",Building Services,Repairs,10-Oct-22,2223/07,SME,N,
10051707,HAYES DIGGINS BUILDERS,600,Roofing,Repairs,17-Oct-22,2223/07,SME,N,
10051708,HAYES DIGGINS BUILDERS,"1,288.00",Building Services,Repairs,17-Oct-22,2223/07,SME,N,
10051151,KEN GRIME & SON LTD,982.35,Building Services,Repairs,26-Sep-22,2223/07,SME,N,
10051629,KEN GRIME & SON LTD,"1,005.11",Building Services,Repairs,13-Oct-22,2223/07,SME,N,
10051446,KENDA-CLEAN,27,Chilton Depot,Window Cleaning,05-Oct-22,2223/07,SME,Y,50%
10051446,KENDA-CLEAN,"1,217.00",Sheltered Accommodation,Window Cleaning,05-Oct-22,2223/07,SME,N,
10051446,KENDA-CLEAN,123,Temporary Accommodation,Window Cleaning,05-Oct-22,2223/07,SME,N,
10051446,KENDA-CLEAN,771,Tenancy Services,Window Cleaning,05-Oct-22,2223/07,SME,N,
10051316,M & H CIVIL ENGINEERING LTD,585.73,Building Services,Repairs,01-Oct-22,2223/07,SME,N,
10051317,M & H CIVIL ENGINEERING LTD,585.73,Building Services,Repairs,01-Oct-22,2223/07,SME,N,
10051318,M & H CIVIL ENGINEERING LTD,325,Building Services,Repairs,01-Oct-22,2223/07,SME,N,
10051191,MALJON TIMBER PRESERVATION LTD,565,Building Services,Repairs,27-Sep-22,2223/07,SME,N,
10051308,MALJON TIMBER PRESERVATION LTD,755,Insulation Imps,Improvements,28-Sep-22,2223/07,SME,N,
10051371,MATERIAL CHANGE COMPOSTING LTD,666.6,Open Spaces,Waste Disposal,30-Sep-22,2223/07,LGE,N,
10051254,MB TREES (EAST ANGLIA) LTD,"1,280.00",Amenity Areas,Tree felling/maintenance,29-Sep-22,2223/07,SME,N,
10051375,MB TREES (EAST ANGLIA) LTD,"1,575.00",Public Tree Programme,Tree felling/maintenance,04-Oct-22,2223/07,SME,N,
10051920,MB TREES (EAST ANGLIA) LTD,"1,480.00",Tenancy Services,Tree felling/maintenance,27-Oct-22,2223/07,SME,N,
10051304,MERCURY BUILDING SERVICES LTD,"1,033.00",Hadleigh Pool,Repairs,30-Sep-22,2223/07,SME,N,
10051304,MERCURY BUILDING SERVICES LTD,"2,092.00",Kingfisher Leisure Centre,Repairs,30-Sep-22,2223/07,SME,N,
10051445,MERCURY BUILDING SERVICES LTD,346,Sheltered Units-Gen.Imp,Repairs,05-Oct-22,2223/07,SME,N,
10051527,MERCURY BUILDING SERVICES LTD,742,Hadleigh Pool,Repairs,09-Oct-22,2223/07,SME,N,
10051527,MERCURY BUILDING SERVICES LTD,"1,405.00",Kingfisher Leisure Centre,Repairs,09-Oct-22,2223/07,SME,N,
10051566,MERCURY BUILDING SERVICES LTD,275,Sheltered Accommodation,Repairs,10-Oct-22,2223/07,SME,N,
10051759,MERCURY BUILDING SERVICES LTD,"3,573.00",Sheltered Accommodation,Repairs,18-Oct-22,2223/07,SME,N,
10051759,MERCURY BUILDING SERVICES LTD,"1,670.00",Sheltered Accommodation,Legionella Testing,18-Oct-22,2223/07,SME,N,
10051775,MIXBROW LTD,"4,615.00",Council House Adaptions,Improvements,18-Oct-22,2223/07,SME,N,
10051745,MONTHIND CLEAN LTD,665.83,Jnt Waste Contract,General Cleaning,15-Oct-22,2223/07,LGE,Y,50%
10051648,NEEDHAM MARKET AERIALS LTD,390,Tenancy Services,Repairs,13-Oct-22,2223/07,SME,N,
10051227,ORWELL HOUSING ASSOCIATION LTD,681.9,Sheltered Accommodation,Contracted Services,30-Jun-22,2223/07,LGE,N,
10051228,ORWELL HOUSING ASSOCIATION LTD,575.8,Sheltered Accommodation,Contracted Services,16-Aug-22,2223/07,LGE,N,
10051709,ORWELL HOUSING ASSOCIATION LTD,"4,375.00",Other Temp Accommodation,Contracted Services,13-Oct-22,2223/07,LGE,N,
10051895,ORWELL HOUSING ASSOCIATION LTD,353.48,Sheltered Accommodation,Horticultural Purchases,21-Oct-22,2223/07,LGE,N,
10051899,ORWELL HOUSING ASSOCIATION LTD,353.48,Sheltered Accommodation,Horticultural Purchases,21-Oct-22,2223/07,LGE,N,
10051900,ORWELL HOUSING ASSOCIATION LTD,353.48,Sheltered Accommodation,Horticultural Purchases,21-Oct-22,2223/07,LGE,N,
10051352,PRO-FLAT SPECIALIST SERVICES LTD,860,Building Services,Repairs,30-Sep-22,2223/07,SME,N,
10050908,REID PLUMBING & HEATING CONTRACTORS LTD,"10,831.72",Central Heating,Major Contracts,13-Sep-22,2223/07,SME,N,
10051039,REID PLUMBING & HEATING CONTRACTORS LTD,"9,870.85",Central Heating,Major Contracts,20-Sep-22,2223/07,SME,N,
10051161,REID PLUMBING & HEATING CONTRACTORS LTD,"10,148.87",Central Heating,Major Contracts,26-Sep-22,2223/07,SME,N,
10051405,REID PLUMBING & HEATING CONTRACTORS LTD,"10,631.34",Central Heating,Major Contracts,04-Oct-22,2223/07,SME,N,
10051583,REID PLUMBING & HEATING CONTRACTORS LTD,"8,968.96",Central Heating,Major Contracts,11-Oct-22,2223/07,SME,N,
10051741,REID PLUMBING & HEATING CONTRACTORS LTD,"4,623.36",Central Heating,Major Contracts,18-Oct-22,2223/07,SME,N,
10051367,SPALDINGS LTD,562.94,Open Spaces,"Equipment, Tools & Materials",03-Oct-22,2223/07,SME,N,
10051706,SUFFOLK TREE SERVICES LTD,500,Public Tree Programme,Tree felling/maintenance,14-Oct-22,2223/07,SME,N,
10050614,SUREFIX,"1,700.00",Window & Door Rplcmts,Improvements,31-Aug-22,2223/07,SME,N,
10050617,SUREFIX,"1,020.00",Window & Door Rplcmts,Improvements,11-Aug-22,2223/07,SME,N,
10050850,SUREFIX,"3,015.00",Window & Door Rplcmts,Improvements,07-Sep-22,2223/07,SME,N,
10051293,SUREFIX,"1,350.00",Building Services,Repairs,26-Sep-22,2223/07,SME,N,
10051296,SUREFIX,"3,850.00",Window & Door Rplcmts,Repairs,29-Sep-22,2223/07,SME,N,
10051297,SUREFIX,857.04,Building Services,Repairs,29-Sep-22,2223/07,SME,N,
10051493,SUREFIX,800,Major Imps,Repairs,03-Oct-22,2223/07,SME,N,
10051655,SUREFIX,850,Window & Door Rplcmts,Repairs,12-Oct-22,2223/07,SME,N,
10051656,SUREFIX,"1,800.00",Major Imps,Repairs,10-Oct-22,2223/07,SME,N,
10051660,SUREFIX,"5,180.00",Window & Door Rplcmts,Improvements,14-Oct-22,2223/07,SME,N,
10051811,SUREFIX,"8,250.00",Window & Door Rplcmts,Improvements,19-Oct-22,2223/07,SME,N,
10051812,SUREFIX,900,Major Imps,Repairs,21-Oct-22,2223/07,SME,N,
10051813,SUREFIX,950,Window & Door Rplcmts,Repairs,21-Oct-22,2223/07,SME,N,
10051815,SUREFIX,"8,650.00",Window & Door Rplcmts,Improvements,20-Oct-22,2223/07,SME,N,
10051698,TANKCHANGE LTD,395,Central Heating,Improvements,16-Oct-22,2223/07,SME,N,
10051699,TANKCHANGE LTD,375,Central Heating,Improvements,16-Oct-22,2223/07,SME,N,
10051264,THERMATECH,"7,600.00",Sheltered Accommodation,Fire Prevention,29-Sep-22,2223/07,SME,N,
10051266,THERMATECH,"1,800.00",Building Services,Training,29-Sep-22,2223/07,SME,Y,50%
10051267,THERMATECH,275,Temporary Accommodation,Fire Prevention,29-Sep-22,2223/07,SME,N,
10051678,THERMATECH,"2,025.00",Tenancy Services,Fire Prevention,14-Oct-22,2223/07,SME,N,
10051299,TRUCKEAST LTD,"1,197.46",Open Spaces,Plant & Vehicle - Other costs,30-Sep-22,2223/07,LGE,N,
10051336,WORKWEAR (EAST ANGLIA) LTD,190.88,Open Spaces,Protective clothing,30-Sep-22,2223/07,SME,N,
10051336,WORKWEAR (EAST ANGLIA) LTD,190.88,Street & Major Road Cleansing,Protective clothing,30-Sep-22,2223/07,SME,N,
10051591,WORKWEAR (EAST ANGLIA) LTD,125.86,Open Spaces,Protective clothing,04-Oct-22,2223/07,SME,N,
10051591,WORKWEAR (EAST ANGLIA) LTD,125.86,Street & Major Road Cleansing,Protective clothing,04-Oct-22,2223/07,SME,N,
10051631,WORKWEAR (EAST ANGLIA) LTD,230.7,Open Spaces,Protective clothing,04-Oct-22,2223/07,SME,N,
10051631,WORKWEAR (EAST ANGLIA) LTD,230.7,Street & Major Road Cleansing,Protective clothing,04-Oct-22,2223/07,SME,N,
10051715,WORKWEAR (EAST ANGLIA) LTD,283.15,Open Spaces,Protective clothing,10-Oct-22,2223/07,SME,N,
10051413,MITIE PROPERTY SERVICES (UK) LTD,"27,232.16",Planned Maint - Ext Painting,External Painting,31-Jul-22,2223/07,SME,N,
10050708,IDOX SOFTWARE LTD,"18,579.49",ICT,Software Licnse (Line of Bus) ,06-Sep-22,2223/07,SME,Y,50%
10051483,BUILDBASE,310.2,Assets & Development,Repairs,30-Sep-22,2223/07,LGE,N,
10051918,IPSWICH BOROUGH COUNCIL,"279,345.00",Shared Revenues Partnership,Major Contracts,24-Oct-22,2223/07,LGE,N,
20028157,GPC BARCLAYS,"8,013.28",Current Assets,Barclaycard Control,16-Oct-22,2223/07,LGE,Y,11%
10051582,STANNAH STAIRLIFTS LTD,"3,461.00",Council House Adaptions,Improvements,06-Sep-22,2223/07,LGE,N,
20028161,COMPUTERSHARE ,413,Current Assets,ChildCare Vouchers-Control,24-Oct-22,2223/07,LGE,N,
20028110,ACTON PARISH COUNCIL,"3,390.55",Current Liabilities,Parish Payments Available,10-Oct-22,2223/07,SME,N,
20028111,ASSINGTON PARISH COUNCIL,"14,798.42",Current Liabilities,Parish Payments Available,10-Oct-22,2223/07,SME,N,
20028112,BENTLEY PARISH COUNCIL,"12,383.98",Current Liabilities,Parish Payments Available,10-Oct-22,2223/07,SME,N,
20028113,BRANTHAM PARISH COUNCIL,"7,747.54",Current Liabilities,Parish Payments Available,10-Oct-22,2223/07,SME,N,
20028114,CAPEL ST MARY PARISH COUNCIL,"28,777.06",Current Liabilities,Parish Payments Available,10-Oct-22,2223/07,SME,N,
20028121,CHATTISHAM & HINTLESHAM PARISH COUNCIL,"7,383.57",Current Liabilities,Parish Payments Available,10-Oct-22,2223/07,SME,N,
10050984,CHELMONDISTON PARISH COUNCIL,680,Grants & Contrbns,Contributions & Donations,16-Sep-22,2223/07,SME,N,
20028115,COCKFIELD PARISH COUNCIL,"11,041.49",Current Liabilities,Parish Payments Available,10-Oct-22,2223/07,SME,N,
20028116,COPDOCK & WASHBROOK PARISH COUNCIL,"18,298.88",Current Liabilities,Parish Payments Available,10-Oct-22,2223/07,SME,N,
20028117,EAST BERGHOLT PARISH COUNCIL,"8,470.84",Current Liabilities,Parish Payments Available,10-Oct-22,2223/07,SME,N,
20028118,GLEMSFORD PARISH COUNCIL,"6,131.28",Current Liabilities,Parish Payments Available,10-Oct-22,2223/07,SME,N,
20028119,GREAT CORNARD PARISH COUNCIL,"2,745.65",Current Liabilities,Parish Payments Available,10-Oct-22,2223/07,SME,N,
10051434,HADLEIGH TOWN COUNCIL,"17,955.06",RHSSF,Prof & Consultancy Fees,31-Mar-22,2223/07,SME,N,
20028120,HADLEIGH TOWN COUNCIL,"8,574.00",Current Liabilities,Parish Payments Available,10-Oct-22,2223/07,SME,N,
20028122,HITCHAM PARISH COUNCIL,"10,197.98",Current Liabilities,Parish Payments Available,10-Oct-22,2223/07,SME,N,
20028124,LAVENHAM PARISH COUNCIL,"26,336.10",Current Liabilities,Parish Payments Available,10-Oct-22,2223/07,SME,N,
10051627,LONG MELFORD PARISH COUNCIL,339.89,Grants & Contrbns,Grants,13-Oct-22,2223/07,SME,N,
20028125,LONG MELFORD PARISH COUNCIL,"53,436.92",Current Liabilities,Parish Payments Available,10-Oct-22,2223/07,SME,N,
20028126,NAYLAND WITH WISSINGTON PARISH COUNCIL,"14,938.16",Current Liabilities,Parish Payments Available,10-Oct-22,2223/07,SME,N,
20028127,NEWTON PARISH COUNCIL,"3,381.21",Current Liabilities,Parish Payments Available,10-Oct-22,2223/07,SME,N,
20028128,PRESTON ST MARY PARISH COUNCIL,"4,775.02",Current Liabilities,Parish Payments Available,10-Oct-22,2223/07,SME,N,
20028129,RAYDON PARISH COUNCIL,"15,098.75",Current Liabilities,Parish Payments Available,10-Oct-22,2223/07,SME,N,
20028130,SHOTLEY PARISH COUNCIL,"18,636.38",Current Liabilities,Parish Payments Available,10-Oct-22,2223/07,SME,N,
20028131,STANSTEAD PARISH COUNCIL,"3,977.77",Current Liabilities,Parish Payments Available,10-Oct-22,2223/07,SME,N,
20028132,STOKE BY NAYLAND PARISH COUNCIL,"1,343.33",Current Liabilities,Parish Payments Available,10-Oct-22,2223/07,SME,N,
20028133,STUTTON PARISH COUNCIL,"26,467.22",Current Liabilities,Parish Payments Available,10-Oct-22,2223/07,SME,N,
10051303,SUDBURY TOWN COUNCIL,"30,766.10",Street & Major Road Cleansing,Contributions & Donations,30-Sep-22,2223/07,SME,N,
10051718,SUDBURY TOWN COUNCIL,570.7,Sheltered Accommodation,General Cleaning,17-Oct-22,2223/07,SME,N,
20028134,SUDBURY TOWN COUNCIL,"7,780.87",Current Liabilities,Parish Payments Available,10-Oct-22,2223/07,SME,N,
20028146,SUDBURY TOWN COUNCIL,"1,059.16",Bring Sites,Contributions & Donations,13-Oct-22,2223/07,SME,N,
10051768,SUFFOLK FAMILY CARERS LTD,"19,500.00",Policy & Strategy (H & W),Contributions & Donations,19-Oct-22,2223/07,SME,N,
10051340,SUFFOLK COUNTY COUNCIL,"30,000.00",Afghan Resettlement Programme,Grants,30-Sep-22,2223/07,LGE,N,
10051459,SUFFOLK COUNTY COUNCIL,"3,153.00",Taxi & Private Hire Licensing,Prof & Consultancy Fees,06-Oct-22,2223/07,LGE,N,
10051561,SUFFOLK COUNTY COUNCIL,"4,555.64",ICT,Photocopying,07-Oct-22,2223/07,LGE,Y,50%
10051712,SUFFOLK COUNTY COUNCIL,623.73,ICT,Desktop Software,14-Oct-22,2223/07,LGE,Y,50%
10051773,SUFFOLK COUNTY COUNCIL,"2,052.78",Info Mgmt,Contracted Services,19-Oct-22,2223/07,LGE,Y,50%
10051351,FENN WRIGHT LLP,"1,125.00",General/Supervision & Mgmt,Prof & Consultancy Fees,30-Sep-22,2223/07,SME,N,
10051484,FENN WRIGHT LLP,"1,250.00",Assets & Development,Prof & Consultancy Fees,20-Sep-22,2223/07,SME,N,
10051315,REED SPECIALIST RECRUITMENT LTD,618.05,Financial Servs,Agency Staff,23-Sep-22,2223/07,LGE,Y,50%
10051696,REED SPECIALIST RECRUITMENT LTD,772.56,Financial Servs,Agency Staff,07-Oct-22,2223/07,LGE,Y,50%
10051663,UNIT 4 BUSINESS SOFTWARE LIMITED,"36,000.01",ICT - Finance System,Software Licnse (Line of Bus) ,09-Sep-22,2223/07,LGE,Y,50%
10051916,TELEFONICA UK LIMITED - O2,335.34,ICT,Telephone Costs,27-Oct-22,2223/07,LGE,Y,50%
10051666,LEX AUTOLEASE,365.95,Building Services,Lease Cars - Payment,27-Sep-22,2223/07,SME,Y,50%
10051667,LEX AUTOLEASE,365.95,Building Services,Lease Cars - Payment,27-Sep-22,2223/07,SME,Y,50%
10051668,LEX AUTOLEASE,323.02,Building Services,Lease Cars - Payment,28-Sep-22,2223/07,SME,Y,50%
10051669,LEX AUTOLEASE,376.73,Building Services,Lease Cars - Payment,02-Oct-22,2223/07,SME,Y,50%
10051670,LEX AUTOLEASE,304.25,Building Services,Lease Cars - Payment,02-Oct-22,2223/07,SME,Y,50%
10051671,LEX AUTOLEASE,318.97,Building Services,Lease Cars - Payment,09-Oct-22,2223/07,SME,Y,50%
10051672,LEX AUTOLEASE,332.77,Building Services,Lease Cars - Payment,09-Oct-22,2223/07,SME,Y,50%
10051673,LEX AUTOLEASE,380.78,Building Services,Lease Cars - Payment,09-Oct-22,2223/07,SME,Y,50%
10051674,LEX AUTOLEASE,328.72,Building Services,Lease Cars - Payment,09-Oct-22,2223/07,SME,Y,50%
10051675,LEX AUTOLEASE,311.34,Building Services,Lease Cars - Payment,09-Oct-22,2223/07,SME,Y,50%
10051676,LEX AUTOLEASE,336.11,Building Services,Lease Cars - Payment,09-Oct-22,2223/07,SME,Y,50%
10051824,LEX AUTOLEASE,331.38,Building Services,Lease Cars - Payment,10-Oct-22,2223/07,SME,Y,50%
10051825,LEX AUTOLEASE,311.43,Building Services,Lease Cars - Payment,10-Oct-22,2223/07,SME,Y,50%
10051826,LEX AUTOLEASE,324.97,Building Services,Lease Cars - Payment,10-Oct-22,2223/07,SME,Y,50%
10051827,LEX AUTOLEASE,355.2,Building Services,Lease Cars - Payment,11-Oct-22,2223/07,SME,Y,50%
10051830,CIVICA UK LIMITED,"10,980.82",ICT,Desktop Software,21-Sep-22,2223/07,LGE,Y,50%
20028153,HADLEIGH UNITED REFORMED CHURCH,"8,625.00",Temporary Accommodation,Rent Payable,11-Oct-22,2223/07,SME,N,
10051829,LANDMARK CHAMBERS,"1,500.00",Devt Management -Applications,Legal Expenses,27-Jul-22,2223/07,SME,N,
20028162,GAZPROM ENERGY,87.93,Belle Vue House,Gas,19-Oct-22,2223/07,SME,N,
20028162,GAZPROM ENERGY,68.89,HQ Energy,Gas,19-Oct-22,2223/07,SME,N,
20028162,GAZPROM ENERGY,"1,934.92",Sheltered Accommodation,Gas,19-Oct-22,2223/07,SME,N,
20028162,GAZPROM ENERGY,133.05,Temporary Accommodation,Gas,19-Oct-22,2223/07,SME,N,
10051764,SUDBURY & DISTRICT CAB,"20,000.00",Grants & Contrbns,Grants,19-Oct-22,2223/07,SME,N,
10051765,SUDBURY & DISTRICT CAB,"20,000.00",Grants & Contrbns,Grants,19-Oct-22,2223/07,SME,N,
10051992,SUDBURY & DISTRICT CAB,"18,375.00",Grants & Contrbns,Grants,31-Oct-22,2223/07,SME,N,
10051632,THE HOUSING OMBUDSMAN,"16,288.60",Capita System Support,Subscriptions,25-Apr-22,2223/07,LGE,N,
10051769,THE QUAY THEATRE AT SUDBURY,"14,500.00",Grants & Contrbns,Grants,19-Oct-22,2223/07,SME,N,
10050886,WHYBROW PROPERTY SOLUTIONS LTD,"7,000.00",Building Services,Repairs,12-Sep-22,2223/07,SME,N,
10051002,WHYBROW PROPERTY SOLUTIONS LTD,"13,267.60",Building Services,Repairs,16-Sep-22,2223/07,SME,N,
10051199,WHYBROW PROPERTY SOLUTIONS LTD,"8,625.61",Building Services,Repairs,27-Sep-22,2223/07,SME,N,
10051200,WHYBROW PROPERTY SOLUTIONS LTD,"6,425.15",Building Services,Repairs,27-Sep-22,2223/07,SME,N,
10051201,WHYBROW PROPERTY SOLUTIONS LTD,"2,250.00",Building Services,Repairs,27-Sep-22,2223/07,SME,N,
10051202,WHYBROW PROPERTY SOLUTIONS LTD,"3,233.25",Building Services,Repairs,27-Sep-22,2223/07,SME,N,
10051319,WHYBROW PROPERTY SOLUTIONS LTD,"5,005.70",Kitchens/Bathrooms,Improvements,27-Sep-22,2223/07,SME,N,
10051406,WHYBROW PROPERTY SOLUTIONS LTD,"1,242.44",Building Services,Repairs,04-Oct-22,2223/07,SME,N,
10051409,WHYBROW PROPERTY SOLUTIONS LTD,"5,403.25",Major Imps,Repairs,06-May-22,2223/07,SME,N,
10051411,WHYBROW PROPERTY SOLUTIONS LTD,"3,907.00",Building Services,Repairs,04-Oct-22,2223/07,SME,N,
10051412,WHYBROW PROPERTY SOLUTIONS LTD,263,Building Services,Repairs,04-Oct-22,2223/07,SME,N,
10051414,WHYBROW PROPERTY SOLUTIONS LTD,559,Building Services,Repairs,04-Oct-22,2223/07,SME,N,
10051415,WHYBROW PROPERTY SOLUTIONS LTD,484.4,Building Services,Repairs,04-Oct-22,2223/07,SME,N,
10051417,WHYBROW PROPERTY SOLUTIONS LTD,438.8,Building Services,Repairs,04-Oct-22,2223/07,SME,N,
10051498,WHYBROW PROPERTY SOLUTIONS LTD,"4,599.00",Building Services,Repairs,07-Oct-22,2223/07,SME,N,
10051499,WHYBROW PROPERTY SOLUTIONS LTD,561,Building Services,Repairs,07-Oct-22,2223/07,SME,N,
10051889,WHYBROW PROPERTY SOLUTIONS LTD,"5,000.00",Kitchens/Bathrooms,Improvements,17-Oct-22,2223/07,SME,N,
10051247,L A C CLEANING CONTRACTORS LIMITED,709.95,Wenham Depot TDP,General Cleaning,27-Sep-22,2223/07,SME,Y,50%
10051248,L A C CLEANING CONTRACTORS LIMITED,648.48,Sheltered Accommodation,General Cleaning,27-Sep-22,2223/07,SME,N,
10051610,L A C CLEANING CONTRACTORS LIMITED,255.5,Tenancy Services,Contracted Services,12-Oct-22,2223/07,SME,N,
10051688,ARMSTRONG YORK ASBESTOS ENVIRONMENTAL,"7,058.40",Asbestos Survey & Reinspection,Prof & Consultancy Fees,30-Sep-22,2223/07,SME,N,
10051529,COMMUNITY ACTION SUFFOLK,834,Grants & Contrbns,Contributions & Donations,10-Oct-22,2223/07,SME,N,
10051618,DALROD (UK) LTD,"15,300.00",Chilton Depot,Grounds & Site Maintenance,12-Oct-22,2223/07,SME,Y,50%
10051332,OPUS PEOPLE SOLUTIONS LTD,468.75,Household Support Grant,Agency Staff,29-Sep-22,2223/07,SME,N,
10051332,OPUS PEOPLE SOLUTIONS LTD,231.16,Business Cont/Emergency Plan,Agency Staff,29-Sep-22,2223/07,SME,N,
10051571,OPUS PEOPLE SOLUTIONS LTD,609.38,Household Support Grant,Agency Staff,06-Oct-22,2223/07,SME,N,
10051571,OPUS PEOPLE SOLUTIONS LTD,76.38,Housing Standards,Agency Staff,06-Oct-22,2223/07,SME,N,
10051571,OPUS PEOPLE SOLUTIONS LTD,300.04,Business Cont/Emergency Plan,Agency Staff,06-Oct-22,2223/07,SME,N,
10051766,OPUS PEOPLE SOLUTIONS LTD,375,Household Support Grant,Agency Staff,13-Oct-22,2223/07,SME,N,
10051766,OPUS PEOPLE SOLUTIONS LTD,81.55,Housing Standards,Agency Staff,13-Oct-22,2223/07,SME,N,
10051766,OPUS PEOPLE SOLUTIONS LTD,307.82,Business Cont/Emergency Plan,Agency Staff,13-Oct-22,2223/07,SME,N,
10051903,OPUS PEOPLE SOLUTIONS LTD,226.56,Household Support Grant,Agency Staff,20-Oct-22,2223/07,SME,N,
10051903,OPUS PEOPLE SOLUTIONS LTD,300.04,Business Cont/Emergency Plan,Agency Staff,20-Oct-22,2223/07,SME,N,
10051927,OPUS PEOPLE SOLUTIONS LTD,210.94,Household Support Grant,Agency Staff,27-Oct-22,2223/07,SME,N,
10051927,OPUS PEOPLE SOLUTIONS LTD,124.92,Electoral Registration,Agency Staff,27-Oct-22,2223/07,SME,N,
10051927,OPUS PEOPLE SOLUTIONS LTD,95.51,Housing Standards,Agency Staff,27-Oct-22,2223/07,SME,N,
10051927,OPUS PEOPLE SOLUTIONS LTD,103.34,Business Cont/Emergency Plan,Agency Staff,27-Oct-22,2223/07,SME,N,
10051324,ROSE BUILDERS LTD,"47,090.10",Structural Works,Major Contracts,31-Aug-22,2223/07,SME,N,
10051357,ROSE BUILDERS LTD,"29,550.00",Hadleigh Pool Refurb,Grounds & Site Maintenance,28-Sep-22,2223/07,SME,N,
10051784,ELYSIAN ASSOCIATES,500,Financial Servs,Prof & Consultancy Fees,10-Oct-22,2223/07,SME,N,
10051238,VERTAS GROUP LTD,"5,578.35",Central Postal Serv,Postage,28-Sep-22,2223/07,SME,Y,50%
10051135,COLLINS SKIP HIRE,825,Building Services,Waste Disposal,26-Sep-22,2223/07,SME,Y,50%
10051335,COLLINS SKIP HIRE,550,Building Services,Waste Disposal,30-Sep-22,2223/07,SME,Y,50%
10051557,COLLINS SKIP HIRE,550,Building Services,Waste Disposal,07-Oct-22,2223/07,SME,Y,50%
10051559,COLLINS SKIP HIRE,390,"Fences, Gates and Walls",Repairs,07-Oct-22,2223/07,SME,N,
10051702,COLLINS SKIP HIRE,275,Building Services,Waste Disposal,17-Oct-22,2223/07,SME,Y,50%
10051331,4PRINCIPLES CONSTRUCTION LTD,"4,150.61",Mand Disabled Facilities Grant,Grants,03-Oct-22,2223/07,SME,N,
10051598,PENNA PLC,"13,328.00",Management Team,Agency Staff,04-Oct-22,2223/07,SME,Y,50%
10051599,PENNA PLC,"11,000.00",Management Team,Agency Staff,04-Oct-22,2223/07,SME,Y,50%
10051727,SUFFOLK MARKET EVENTS,"1,078.24",BRRP-MarketTownVision&Invest,Prof & Consultancy Fees,01-Oct-22,2223/07,SME,Y,48%
10051732,SUFFOLK MARKET EVENTS,727.7,Hadleigh Market,Contracted Services,14-Oct-22,2223/07,SME,N,
10051776,SUFFOLK MARKET EVENTS,315.66,BRRP-MarketTownVision&Invest,Prof & Consultancy Fees,19-Oct-22,2223/07,SME,Y,40%
10051286,ADVANCE SUPPLIES,348.84,Open Spaces,Cleaning Materials,29-Sep-22,2223/07,SME,N,
10051126,HAYS SPECIALIST RECRUITMENT LTD,"1,555.88",ICT - Finance System,Agency Staff,23-Sep-22,2223/07,LGE,Y,50%
10051314,HAYS SPECIALIST RECRUITMENT LTD,"1,750.37",ICT - Finance System,Agency Staff,30-Sep-22,2223/07,LGE,Y,50%
10051364,HAYS SPECIALIST RECRUITMENT LTD,935.48,Assets & Development,Agency Staff,03-Oct-22,2223/07,LGE,Y,50%
10051364,HAYS SPECIALIST RECRUITMENT LTD,233.88,General/Supervision & Mgmt,Agency Staff,03-Oct-22,2223/07,LGE,Y,50%
10051365,HAYS SPECIALIST RECRUITMENT LTD,"1,543.56",Assets & Development,Agency Staff,03-Oct-22,2223/07,LGE,Y,50%
10051365,HAYS SPECIALIST RECRUITMENT LTD,385.88,General/Supervision & Mgmt,Agency Staff,03-Oct-22,2223/07,LGE,Y,50%
10051366,HAYS SPECIALIST RECRUITMENT LTD,"1,120.00",Financial Servs,Agency Staff,03-Oct-22,2223/07,LGE,Y,50%
10051366,HAYS SPECIALIST RECRUITMENT LTD,"1,680.00",HRA Accountancy,Agency Staff,03-Oct-22,2223/07,LGE,Y,50%
10051580,HAYS SPECIALIST RECRUITMENT LTD,"1,637.10",Assets & Development,Agency Staff,10-Oct-22,2223/07,LGE,Y,50%
10051580,HAYS SPECIALIST RECRUITMENT LTD,409.28,General/Supervision & Mgmt,Agency Staff,10-Oct-22,2223/07,LGE,Y,50%
10051602,HAYS SPECIALIST RECRUITMENT LTD,"1,120.00",Financial Servs,Agency Staff,11-Oct-22,2223/07,LGE,Y,50%
10051602,HAYS SPECIALIST RECRUITMENT LTD,"1,680.00",HRA Accountancy,Agency Staff,11-Oct-22,2223/07,LGE,Y,50%
10051624,HAYS SPECIALIST RECRUITMENT LTD,"1,750.37",ICT - Finance System,Agency Staff,12-Oct-22,2223/07,LGE,Y,50%
10051625,HAYS SPECIALIST RECRUITMENT LTD,"1,944.85",ICT - Finance System,Agency Staff,12-Oct-22,2223/07,LGE,Y,50%
10051731,HAYS SPECIALIST RECRUITMENT LTD,"1,120.00",Financial Servs,Agency Staff,17-Oct-22,2223/07,LGE,Y,50%
10051731,HAYS SPECIALIST RECRUITMENT LTD,"1,680.00",HRA Accountancy,Agency Staff,17-Oct-22,2223/07,LGE,Y,50%
10051755,HAYS SPECIALIST RECRUITMENT LTD,"1,407.90",Assets & Development,Agency Staff,17-Oct-22,2223/07,LGE,Y,50%
10051755,HAYS SPECIALIST RECRUITMENT LTD,351.98,General/Supervision & Mgmt,Agency Staff,17-Oct-22,2223/07,LGE,Y,50%
10051834,HAYS SPECIALIST RECRUITMENT LTD,"1,944.85",ICT - Finance System,Agency Staff,21-Oct-22,2223/07,LGE,Y,50%
10051884,HAYS SPECIALIST RECRUITMENT LTD,"1,120.00",Financial Servs,Agency Staff,25-Oct-22,2223/07,LGE,Y,50%
10051884,HAYS SPECIALIST RECRUITMENT LTD,"1,680.00",HRA Accountancy,Agency Staff,25-Oct-22,2223/07,LGE,Y,50%
10051345,RICHARD UTTING ASSOCIATES LLP,"2,890.00",Bourne Hill Wherstead S106 acq,Prof & Consultancy Fees,10-Jan-22,2223/07,SME,N,
10051410,RICHARD UTTING ASSOCIATES LLP,"1,889.18",Waldingfield Rd S106 Andersons,Prof & Consultancy Fees,31-Aug-22,2223/07,SME,N,
10051462,RICHARD UTTING ASSOCIATES LLP,"1,889.18",Waldingfield Rd S106 Andersons,Prof & Consultancy Fees,30-Sep-22,2223/07,SME,N,
10051605,RICHARD UTTING ASSOCIATES LLP,"5,780.00",Bourne Hill Wherstead S106 acq,Prof & Consultancy Fees,30-Sep-22,2223/07,SME,N,
10050732,PUBLIC SEWER SERVICES,"1,156.98",Unadopted Drains & Sewers,Repairs,24-May-22,2223/07,SME,N,
10051131,PUBLIC SEWER SERVICES,913.31,Building Services,Repairs,26-Sep-22,2223/07,SME,N,
10051133,PUBLIC SEWER SERVICES,897.01,Building Services,Repairs,26-Sep-22,2223/07,SME,N,
10051325,PRIVATE LANDLORD,680,Guaranteed Rent Scheme,Rent Payable,25-Aug-22,2223/07,SME,N,
10051379,THE STOWMARKET GLASS COMPANY LTD,348.8,Building Services,Repairs,16-Sep-22,2223/07,SME,N,
10051380,THE STOWMARKET GLASS COMPANY LTD,684.55,Building Services,Repairs,21-Sep-22,2223/07,SME,N,
10051385,THE STOWMARKET GLASS COMPANY LTD,"1,418.34",Building Services,Repairs,26-Sep-22,2223/07,SME,N,
10051387,THE STOWMARKET GLASS COMPANY LTD,326.25,Building Services,Repairs,05-Sep-22,2223/07,SME,N,
10051389,THE STOWMARKET GLASS COMPANY LTD,316.5,Building Services,Repairs,05-Sep-22,2223/07,SME,N,
10051390,THE STOWMARKET GLASS COMPANY LTD,"1,087.43",Building Services,Repairs,12-Sep-22,2223/07,SME,N,
10051391,THE STOWMARKET GLASS COMPANY LTD,"1,892.28",Building Services,Repairs,12-Sep-22,2223/07,SME,N,
10051392,THE STOWMARKET GLASS COMPANY LTD,329.08,Building Services,Repairs,12-Sep-22,2223/07,SME,N,
10051399,THE STOWMARKET GLASS COMPANY LTD,410.21,Building Services,Repairs,14-Sep-22,2223/07,SME,N,
10051689,ASPECT CONTRACTS LTD,"8,452.00",Asbestos,Improvements,12-Oct-22,2223/07,LGE,N,
20028107,RIX PETROLEUM (EAST ANGLIA) LTD,"1,528.98",Tenancy Services,Heating Oil,02-Oct-22,2223/07,SME,N,
20028107,RIX PETROLEUM (EAST ANGLIA) LTD,"1,121.25",Open Spaces,Plant & Vehicle Fuel,02-Oct-22,2223/07,SME,Y,50%
10051146,KNOWLES ASSOCIATES TFM LTD,"1,595.00",Public Realm TransitionProject,"Equipment, Tools & Materials",21-Sep-22,2223/07,SME,N,
10051219,NORTHUMBRIAN WATER LTD,69.51,Chilton Depot,Legionella Testing,28-Sep-22,2223/07,LGE,Y,50%
10051219,NORTHUMBRIAN WATER LTD,37.7,HQ Energy,Legionella Testing,28-Sep-22,2223/07,LGE,N,
10051219,NORTHUMBRIAN WATER LTD,293.68,Sheltered Accommodation,Legionella Testing,28-Sep-22,2223/07,LGE,N,
10051219,NORTHUMBRIAN WATER LTD,101.37,Temporary Accommodation,Legionella Testing,28-Sep-22,2223/07,LGE,N,
10051219,NORTHUMBRIAN WATER LTD,254.87,Tenancy Services,Legionella Testing,28-Sep-22,2223/07,LGE,N,
10051219,NORTHUMBRIAN WATER LTD,31.86,Wenham Depot,Legionella Testing,28-Sep-22,2223/07,LGE,Y,50%
10051603,STORETEC SERVICES LTD,"1,034.81",ICT,"Equipment, Tools & Materials",30-Sep-22,2223/07,SME,Y,50%
10051601,GIPPING OCCUPATIONAL HEALTH LTD,280,Health & Safety,Contracted Services,11-Oct-22,2223/07,SME,Y,50%
10051348,AIRMAX REMOTE LTD,437.88,Building Services,Plant & Vehicle - Other costs,30-Sep-22,2223/07,SME,Y,50%
10051354,GRAVITAS RECRUITMENT GROUP LTD,"2,000.00",ICT,Agency Staff,03-Oct-22,2223/07,LGE,Y,50%
10051597,GRAVITAS RECRUITMENT GROUP LTD,"2,000.00",ICT,Agency Staff,11-Oct-22,2223/07,LGE,Y,50%
10051754,GRAVITAS RECRUITMENT GROUP LTD,"2,000.00",ICT,Agency Staff,18-Oct-22,2223/07,LGE,Y,50%
10051894,GRAVITAS RECRUITMENT GROUP LTD,"2,500.00",ICT,Agency Staff,26-Oct-22,2223/07,LGE,Y,50%
10051611,JOHN FORD GROUP LTD,"8,348.70",Mand Disabled Facilities Grant,Grants,12-Oct-22,2223/07,SME,N,
10051465,RESIDENTIALLY CHARTERED SURVEYORS,"1,000.00",Bourne Hill Wherstead S106 acq,Prof & Consultancy Fees,30-Sep-22,2223/07,SME,N,
10051888,LICENCE CHECK LTD,"1,500.00",Health & Safety,Contracted Services,26-Oct-22,2223/07,SME,Y,50%
10051634,KLH ARCHITECTS LTD,"2,600.00",Hamilton Road Regeneration,Prof & Consultancy Fees,10-Oct-22,2223/07,SME,N,
10051346,SUDBURYS,825,Guaranteed Rent Scheme,Rent Payable,04-Oct-22,2223/07,SME,N,
10051855,SUDBURYS,440,Guaranteed Rent Scheme,Rent Payable,24-Oct-22,2223/07,SME,N,
10051735,GREENFUTURE SOLUTIONS LTD,"9,407.00",Mand Disabled Facilities Grant,Grants,18-Oct-22,2223/07,SME,N,
10051554,WILLIAM H BROWN ESTATE AGENTS - SUDBURY,725,Guaranteed Rent Scheme,Rent Payable,10-Oct-22,2223/07,SME,N,
10051439,AQUAM WATER SERVICES LTD,"1,030.00",Street & Major Road Cleansing,"Equipment, Tools & Materials",08-Sep-22,2223/07,SME,N,
10051635,PORTAL PLAN QUEST LTD,486,Devt Management -Applications,Planning Fees,13-Oct-22,2223/07,SME,N,
10051374,ABBEYCROFT LEISURE,"17,762.50",Hadleigh Pool,Major Contracts,04-Oct-22,2223/07,LGE,N,
10051374,ABBEYCROFT LEISURE,"8,047.50",New Hadl Pl & Leisure Centre,Major Contracts,04-Oct-22,2223/07,LGE,N,
10051374,ABBEYCROFT LEISURE,"34,925.00",Kingfisher Leisure Centre,Major Contracts,04-Oct-22,2223/07,LGE,N,
10051520,ABBEYCROFT LEISURE,"2,316.00",Holiday Activity Funding,"Equipment, Tools & Materials",07-Oct-22,2223/07,LGE,N,
10051865,BELLWAY HOMES LIMITED (ESSEX DIVISION),"106,397.62",Bourne Hill Wherstead S106 acq,Prof & Consultancy Fees,19-Oct-22,2223/07,LGE,N,
10051431,A C LEIGH (NORWICH) LTD,746,Building Services,"Equipment, Tools & Materials",29-Sep-22,2223/07,SME,N,
10051694,3 POINT PROPERTY MANAGEMENT LTD,580,Guaranteed Rent Scheme,Rent Payable,17-Oct-22,2223/07,SME,N,
10051713,WEST SUFFOLK COUNCIL,500,Community Safety-CCTV,"Equipment, Tools & Materials",12-Sep-22,2223/07,LGE,N,
10051785,CHUBB - PENDANT & LANYARD ONLY,409,Sheltered Accommodation,Community Alarm Costs,13-Oct-22,2223/07,LGE,N,
10051284,ENSORS,"2,050.00",BMS Invest,Audit Fees,29-Sep-22,2223/07,SME,N,
10050966,DG ACCESSIBLE DESIGNS,800,Mand Disabled Facilities Grant,Grants,31-Jul-22,2223/07,SME,N,
10051736,DG ACCESSIBLE DESIGNS,"5,625.00",Mand Disabled Facilities Grant,Grants,18-Oct-22,2223/07,SME,N,
10049720,HUGHES TRADE,"2,066.34",Temporary Accommodation,Furniture,28-Jul-22,2223/07,LGE,N,
10050389,HUGHES TRADE,689.84,Other Temp Accommodation,Furniture,24-Aug-22,2223/07,LGE,N,
10051372,HUGHES TRADE,336.06,Sheltered Accommodation,Furniture,04-Oct-22,2223/07,LGE,N,
10051322,APTL ENTERPRISES LTD,"4,648.00",PV Panels,Repairs,30-Sep-22,2223/07,SME,N,
10051482,APTL ENTERPRISES LTD,"6,990.00",PV Panels,Repairs,30-Sep-22,2223/07,SME,N,
10051307,WASHCO LTD,314.16,Sheltered Accommodation,Repairs,21-Sep-22,2223/07,SME,N,
10051172,ANGLIA COMMERCIAL FLOORING LTD,"1,177.92",Building Services,Repairs,26-Sep-22,2223/07,SME,N,
10051173,ANGLIA COMMERCIAL FLOORING LTD,459.14,Building Services,Repairs,26-Sep-22,2223/07,SME,N,
10051174,ANGLIA COMMERCIAL FLOORING LTD,"1,147.86",Building Services,Repairs,26-Sep-22,2223/07,SME,N,
10051178,ANGLIA COMMERCIAL FLOORING LTD,360.76,Building Services,Repairs,26-Sep-22,2223/07,SME,N,
10051180,ANGLIA COMMERCIAL FLOORING LTD,663.83,Building Services,Repairs,26-Sep-22,2223/07,SME,N,
10051181,ANGLIA COMMERCIAL FLOORING LTD,498.8,Building Services,Repairs,26-Sep-22,2223/07,SME,N,
10051182,ANGLIA COMMERCIAL FLOORING LTD,534,Building Services,Repairs,26-Sep-22,2223/07,SME,N,
10051183,ANGLIA COMMERCIAL FLOORING LTD,668.13,Building Services,Repairs,26-Sep-22,2223/07,SME,N,
10051184,ANGLIA COMMERCIAL FLOORING LTD,649.19,Building Services,Repairs,26-Sep-22,2223/07,SME,N,
10051480,ANGLIA COMMERCIAL FLOORING LTD,655.92,Building Services,Repairs,23-Sep-22,2223/07,SME,N,
10051311,CABBAGES & KINGS,300.45,Devt Management -Applications,Food & Drink,30-Sep-22,2223/07,SME,Y,50%
20028160,ANGLIAN WATER BUS (NAT) LTD T/A WAVE,13.48,Belle Vue House,Water Rates - Metered,12-Oct-22,2223/07,LGE,N,
20028160,ANGLIAN WATER BUS (NAT) LTD T/A WAVE,124.99,C Parks General,Water Rates - Metered,12-Oct-22,2223/07,LGE,N,
20028160,ANGLIAN WATER BUS (NAT) LTD T/A WAVE,512.07,Chilton Depot,Water Rates - Metered,12-Oct-22,2223/07,LGE,Y,50%
20028160,ANGLIAN WATER BUS (NAT) LTD T/A WAVE,3.97,Friars Meadow Sudb,Water Rates - Metered,12-Oct-22,2223/07,LGE,N,
20028160,ANGLIAN WATER BUS (NAT) LTD T/A WAVE,40.72,General Rechargeable Works,Misc Supplies & Services Costs,12-Oct-22,2223/07,LGE,N,
20028160,ANGLIAN WATER BUS (NAT) LTD T/A WAVE,36.86,HQ Energy,Water Rates - Metered,12-Oct-22,2223/07,LGE,N,
20028160,ANGLIAN WATER BUS (NAT) LTD T/A WAVE,502.98,Public Conveniences,Water Rates - Metered,12-Oct-22,2223/07,LGE,N,
20028160,ANGLIAN WATER BUS (NAT) LTD T/A WAVE,"2,253.53",Sheltered Accommodation,Water Rates - Metered,12-Oct-22,2223/07,LGE,N,
20028160,ANGLIAN WATER BUS (NAT) LTD T/A WAVE,671.12,Temporary Accommodation,Water Rates - Metered,12-Oct-22,2223/07,LGE,N,
20028160,ANGLIAN WATER BUS (NAT) LTD T/A WAVE,156.01,Tenancy Services,Water Rates - Metered,12-Oct-22,2223/07,LGE,N,
10051369,STUDLEY CAPITAL LIMITED,"2,850.00",Hamilton Road Regeneration,Prof & Consultancy Fees,03-Oct-22,2223/07,ST,N,
10051288,GREENACRE RECRUITMENT LTD,"3,228.00",Management Team,Agency Staff,29-Sep-22,2223/07,SME,Y,50%
10051289,GREENACRE RECRUITMENT LTD,"3,420.00",Management Team,Agency Staff,29-Sep-22,2223/07,SME,Y,50%
10051436,GREENACRE RECRUITMENT LTD,"4,702.50",Management Team,Agency Staff,05-Oct-22,2223/07,SME,Y,50%
10051437,GREENACRE RECRUITMENT LTD,"3,172.00",Management Team,Agency Staff,05-Oct-22,2223/07,SME,Y,50%
10051612,GREENACRE RECRUITMENT LTD,"3,807.00",Management Team,Agency Staff,12-Oct-22,2223/07,SME,Y,50%
10051613,GREENACRE RECRUITMENT LTD,"4,275.00",Management Team,Agency Staff,12-Oct-22,2223/07,SME,Y,50%
10051770,GREENACRE RECRUITMENT LTD,"3,193.90",Management Team,Agency Staff,19-Oct-22,2223/07,SME,Y,50%
10051771,GREENACRE RECRUITMENT LTD,"4,275.00",Management Team,Agency Staff,19-Oct-22,2223/07,SME,Y,50%
10051904,GREENACRE RECRUITMENT LTD,"3,420.00",Management Team,Agency Staff,26-Oct-22,2223/07,SME,Y,50%
10051905,GREENACRE RECRUITMENT LTD,"3,874.35",Management Team,Agency Staff,26-Oct-22,2223/07,SME,Y,50%
20028155,TENNENS PROPERTIES LTD,"1,634.00",Rent Deposit Scheme,Misc Premises Costs,12-Oct-22,2223/07,SME,N,
10051349,TIAA LTD,"4,506.38",Internal Audit,Contracted Services,01-Oct-22,2223/07,SME,Y,50%
10051860,BYCHOICE LTD,950,Guaranteed Rent Scheme,Rent Payable,24-Oct-22,2223/07,SME,N,
10051457,PINSENT MASONS LLP,756.85,Belle Vue Refurb/Rplcmt,Prof & Consultancy Fees,30-Sep-22,2223/07,LGE,N,
10051869,REEFER PROPERTIES LTD,695,Guaranteed Rent Scheme,Rent Payable,25-Oct-22,2223/07,SME,N,
10051737,WADDINGTON BROWN LTD,"1,084.10",Organisational Devt,Agency Staff,28-Sep-22,2223/07,SME,Y,50%
10051556,PRIVATE LANDLORD,675,Guaranteed Rent Scheme,Rent Payable,10-Oct-22,2223/07,ST,N,
10051845,PRIVATE LANDLORD,675,Guaranteed Rent Scheme,Rent Payable,24-Oct-22,2223/07,ST,N,
10051859,PRIVATE LANDLORD,700,Guaranteed Rent Scheme,Rent Payable,24-Oct-22,2223/07,SME,N,
10051861,PRIVATE LANDLORD,"1,198.00",Guaranteed Rent Scheme,Rent Payable,24-Oct-22,2223/07,ST,N,
10051501,BUCHER MUNICIPAL LTD,818.48,Street & Major Road Cleansing,"Equipment, Tools & Materials",06-Oct-22,2223/07,LGE,N,
10051622,PLUG-N-GO-LIMITED,412.47,Climate Change and Sustainabil,Misc Supplies & Services Costs,01-Oct-22,2223/07,SME,N,
10051851,SEQUENCE UK LTD (WILLIAM H BROWN),700,Guaranteed Rent Scheme,Rent Payable,24-Oct-22,2223/07,LGE,N,
20028154,SEQUENCE UK LTD (WILLIAM H BROWN),925,Guaranteed Rent Scheme,Rent Payable,12-Oct-22,2223/07,LGE,N,
20028154,SEQUENCE UK LTD (WILLIAM H BROWN),"1,000.00",Guaranteed Rent Scheme,Misc Supplies & Services Costs,12-Oct-22,2223/07,LGE,N,
10051848,PRIVATE LANDLORD,550,Guaranteed Rent Scheme,Rent Payable,24-Oct-22,2223/07,ST,N,
10051854,PRIVATE LANDLORD,700,Guaranteed Rent Scheme,Rent Payable,24-Oct-22,2223/07,ST,N,
10051330,PRIVATE LANDLORD,490,Guaranteed Rent Scheme,Rent Payable,03-Oct-22,2223/07,SME,N,
10051515,PRIVATE LANDLORD,"1,320.00",Guaranteed Rent Scheme,Rent Payable,10-Oct-22,2223/07,SME,N,
10051711,SUFFOLK DOORS & WINDOWS LTD,"1,080.00",Window & Door Rplcmts,Repairs,17-Oct-22,2223/07,SME,N,
10051326,PRIVATE LANDLORD,786.5,Guaranteed Rent Scheme,Rent Payable,03-Oct-22,2223/07,ST,N,
10051511,DAVID BURR (LONG MELFORD) LTD,700,Guaranteed Rent Scheme,Rent Payable,10-Oct-22,2223/07,SME,N,
10051509,ORBIT HOUSING ASSOCIATION,650,Guaranteed Rent Scheme,Rent Payable,10-Oct-22,2223/07,ST,N,
10051401,CEL SOLICITORS,"18,236.16",Building Services,BMBS Repairs Work,04-Oct-22,2223/07,SME,N,
10051453,COUNTRYSTYLE RECYCLING LTD,"3,862.58",Bring Sites,Contracted Services,30-Sep-22,2223/07,SME,N,
10051280,ANDERSON DESIGN & BUILD LIMITED,"138,781.49",Waldingfield Rd S106 Andersons,Prof & Consultancy Fees,28-Sep-22,2223/07,SME,N,
10051370,ANDERSON DESIGN & BUILD LIMITED,"52,726.62",Waldingfield Rd S106 Andersons,Prof & Consultancy Fees,31-Aug-22,2223/07,SME,N,
10051512,PRIVATE LANDLORD,700,Guaranteed Rent Scheme,Rent Payable,10-Oct-22,2223/07,ST,N,
10051555,PRIVATE LANDLORD,800,Guaranteed Rent Scheme,Rent Payable,10-Oct-22,2223/07,ST,N,
10051433,CARE PLUS STAFFORDSHIRE LTD,"7,456.60",Sheltered General Mgmt,Community Alarm Costs,05-Oct-22,2223/07,SME,N,
10051433,CARE PLUS STAFFORDSHIRE LTD,66.28,Homelessness Private Sector,Telephone Costs,05-Oct-22,2223/07,SME,N,
10051433,CARE PLUS STAFFORDSHIRE LTD,563.38,Building Services,Telephone Costs,05-Oct-22,2223/07,SME,N,
10051433,CARE PLUS STAFFORDSHIRE LTD,66.28,Other Public Health Matters,Telephone Costs,05-Oct-22,2223/07,SME,N,
10051433,CARE PLUS STAFFORDSHIRE LTD,66.28,Bldg Control Commercial Income,Telephone Costs,05-Oct-22,2223/07,SME,N,
10051433,CARE PLUS STAFFORDSHIRE LTD,66.29,Civil Protection & Emerg Plg,Telephone Costs,05-Oct-22,2223/07,SME,N,
10051514,PRIVATE LANDLORD,800,Guaranteed Rent Scheme,Rent Payable,10-Oct-22,2223/07,SME,N,
10050917,ARAN INSULATION LTD,944.45,Insulation Imps,Improvements,12-Sep-22,2223/07,SME,N,
10051045,ARAN INSULATION LTD,"2,718.19",Insulation Imps,Improvements,21-Sep-22,2223/07,SME,N,
10051079,ARAN INSULATION LTD,"27,632.39",Insulation Imps,Improvements,22-Sep-22,2223/07,SME,N,
10051080,ARAN INSULATION LTD,"16,997.06",Insulation Imps,Improvements,22-Sep-22,2223/07,SME,N,
10051195,ARAN INSULATION LTD,938.15,Insulation Imps,Improvements,27-Sep-22,2223/07,SME,N,
10051196,ARAN INSULATION LTD,457.56,Insulation Imps,Improvements,27-Sep-22,2223/07,SME,N,
10051197,ARAN INSULATION LTD,300,Insulation Imps,Improvements,27-Sep-22,2223/07,SME,N,
10051198,ARAN INSULATION LTD,"1,859.95",Insulation Imps,Improvements,27-Sep-22,2223/07,SME,N,
10051420,ARAN INSULATION LTD,"3,067.89",Insulation Imps,Improvements,30-Sep-22,2223/07,SME,N,
10051421,ARAN INSULATION LTD,"4,659.15",Insulation Imps,Improvements,30-Sep-22,2223/07,SME,N,
10051422,ARAN INSULATION LTD,664.83,Insulation Imps,Improvements,30-Sep-22,2223/07,SME,N,
10051423,ARAN INSULATION LTD,622.91,Insulation Imps,Improvements,30-Sep-22,2223/07,SME,N,
10051424,ARAN INSULATION LTD,741.27,Insulation Imps,Improvements,30-Sep-22,2223/07,SME,N,
10051425,ARAN INSULATION LTD,751.58,Insulation Imps,Improvements,30-Sep-22,2223/07,SME,N,
10051426,ARAN INSULATION LTD,"2,599.95",Insulation Imps,Improvements,30-Sep-22,2223/07,SME,N,
10051447,ARAN INSULATION LTD,"3,108.19",Insulation Imps,Improvements,30-Sep-22,2223/07,SME,N,
10051312,PRIVATE LANDLORD,500,Guaranteed Rent Scheme,Rent Payable,03-Oct-22,2223/07,ST,N,
10051856,PRIVATE LANDLORD,580,Guaranteed Rent Scheme,Rent Payable,24-Oct-22,2223/07,ST,N,
10051721,POLYSOLAR LTD,"4,113.34",Public Sector Decarbonisation,Contracted Services,07-Oct-22,2223/07,SME,N,
10051341,URBA,"3,230.00",Devt Management -Applications,Viability,03-Oct-22,2223/07,SME,N,
10051479,IPSERV LTD,269.23,Central Printing,Commercial Printing,06-Oct-22,2223/07,SME,N,
10051479,IPSERV LTD,"1,470.90",Communications,Commercial Printing,06-Oct-22,2223/07,SME,N,
10051892,SSE,434.35,Other Temp Accommodation,Electricity,18-Oct-22,2223/07,LGE,N,
10051154,JACKSON LIFT SERVICES LTD,708,Sheltered Units-Gen.Imp,Improvements,26-Sep-22,2223/07,LGE,N,
10051402,DAVID BURR LETTINGS,345,Guaranteed Rent Scheme,Misc Supplies & Services Costs,04-Oct-22,2223/07,SME,N,
10051833,OLSBERG/SPI LIMITED,"13,850.00",Economy & Business,Contributions & Donations,20-Oct-22,2223/07,SME,N,
10050789,FOURWAYS VEHICLE SOLUTIONS LTD,746.6,Open Spaces,"Equipment, Tools & Materials",24-Aug-22,2223/07,SME,N,
10051403,START AFRESH CLEANING LTD,515.67,Street & Major Road Cleansing,General Cleaning,30-Sep-22,2223/07,SME,N,
10051403,START AFRESH CLEANING LTD,31.5,Open Spaces,Cleaning Materials,30-Sep-22,2223/07,SME,N,
10051577,PRIVATE LANDLORD,715,Guaranteed Rent Scheme,Rent Payable,11-Oct-22,2223/07,SME,N,
10051690,SHJ HOMES LTD,550,Guaranteed Rent Scheme,Rent Payable,17-Oct-22,2223/07,SME,N,
10051844,PRIVATE LANDLORD,500,Guaranteed Rent Scheme,Rent Payable,24-Oct-22,2223/07,ST,N,
10051259,KEYS REMOVALS LTD,469.43,Homeless Prevention Fund,Removal Expenses,27-Sep-22,2223/07,SME,N,
10051523,ANGLIA SPORTS MANAGEMENT LTD,600,Holiday Activity Funding,"Equipment, Tools & Materials",06-Oct-22,2223/07,SME,N,
10051685,PRIVATE LANDLORD,675,Guaranteed Rent Scheme,Rent Payable,17-Oct-22,2223/07,ST,N,
10051513,PRIVATE LANDLORD,500,Guaranteed Rent Scheme,Rent Payable,10-Oct-22,2223/07,ST,N,
10051604,SHARPS ACOUSTICS LLP,"5,500.00",Devt Management -Applications,Environmental  Consultancy,30-Sep-22,2223/07,SME,N,
10051687,PRIVATE LANDLORD,650,Guaranteed Rent Scheme,Rent Payable,17-Oct-22,2223/07,ST,N,
10051849,PRIVATE LANDLORD,650,Guaranteed Rent Scheme,Rent Payable,24-Oct-22,2223/07,ST,N,
10051565,ABLEWORLD,"4,635.00",Mand Disabled Facilities Grant,Grants,10-Oct-22,2223/07,SME,N,
10051504,MAXIM SPORTS COACHING,"2,002.50",Holiday Activity Funding,"Equipment, Tools & Materials",07-Oct-22,2223/07,SME,N,
10051686,PRIVATE LANDLORD,695,Guaranteed Rent Scheme,Rent Payable,17-Oct-22,2223/07,ST,N,
10051454,PRIVATE LANDLORD,312.5,Homeless Prevention Fund,Misc Supplies & Services Costs,06-Oct-22,2223/07,ST,N,
10051788,PRIVATE LANDLORD,"3,000.00",Homeless Prevention Fund,Misc Supplies & Services Costs,20-Oct-22,2223/07,ST,N,
10051701,HAMILTON SMITH LETTINGS,670,Guaranteed Rent Scheme,Rent Payable,17-Oct-22,2223/07,SME,N,
10051742,BRITISH GAS TRADING LTD,269.99,Voids Maintenance,Gas,20-Sep-22,2223/07,LGE,N,
10051567,JB PROPERTY SOLUTIONS (SUFFOLK) LTD T/A,455,Guaranteed Rent Scheme,Rent Payable,10-Oct-22,2223/07,SME,N,
10051584,KBM HOUSE SHARE & PROPERTY MANAGEMENT LT,550,Guaranteed Rent Scheme,Rent Payable,11-Oct-22,2223/07,SME,N,
10051441,PAY 360 LIMITED,"1,140.79",Bank Chgs,Bank Charges,05-Oct-22,2223/07,LGE,Y,50%
10051623,PAY 360 LIMITED,"4,209.23",Bank Chgs,Bank Charges,12-Oct-22,2223/07,LGE,N,
10051692,PRIVATE LANDLORD,550,Guaranteed Rent Scheme,Rent Payable,17-Oct-22,2223/07,SME,N,
10051863,PRIVATE LANDLORD,885,Guaranteed Rent Scheme,Rent Payable,24-Oct-22,2223/07,ST,N,
10051778,A W & D HAMMOND LTD,"24,785.00",Vehicle and Plant Renewals,Plant & Vehicle - Purchase,30-Sep-22,2223/07,LGE,N,
10051779,A W & D HAMMOND LTD,"26,785.00",Vehicle and Plant Renewals,Plant & Vehicle - Purchase,30-Sep-22,2223/07,LGE,N,
10051503,TCM LTD,290,Building Services,Repairs,31-Aug-22,2223/07,SME,N,
10051578,HENSTAN LOGISTICS,800,Guaranteed Rent Scheme,Rent Payable,11-Oct-22,2223/07,ST,N,
10051510,PRIVATE LANDLORD,750,Guaranteed Rent Scheme,Rent Payable,10-Oct-22,2223/07,ST,N,
10051730,PRIVATE LANDLORD,350,Guaranteed Rent Scheme,Rent Payable,10-Oct-22,2223/07,ST,N,
10051847,PRIVATE LANDLORD,575,Guaranteed Rent Scheme,Rent Payable,24-Oct-22,2223/07,ST,N,
10051550,CUBE INSTALLATIONS,637,Mand Disabled Facilities Grant,Grants,10-Oct-22,2223/07,SME,N,
10051551,CUBE INSTALLATIONS,616.64,Mand Disabled Facilities Grant,Grants,10-Oct-22,2223/07,SME,N,
10051772,JPK TRADE SUPPLIES LTD,980,Street & Major Road Cleansing,"Equipment, Tools & Materials",12-Oct-22,2223/07,SME,N,
10051068,CAPITA IB SOLUTIONS LTD,"54,294.50",ICT - Finance System,Contracted Services,25-Jul-22,2223/07,LGE,Y,50%
10051269,NEWSQUEST MEDIA GROUP,407.9,Devt Management -Applications,Advertising&mkting (non-staff),28-Sep-22,2223/07,LGE,N,
10051444,NEWSQUEST MEDIA GROUP,438.8,Devt Management -Applications,Advertising&mkting (non-staff),04-Oct-22,2223/07,LGE,N,
10051617,NEWSQUEST MEDIA GROUP,"1,025.90",Devt Management -Applications,Advertising&mkting (non-staff),12-Oct-22,2223/07,LGE,N,
10051739,DENTAID LTD,"1,000.00",Grants & Contrbns,Grants,18-Oct-22,2223/07,SME,N,
10051630,BELL DECORATING GROUP LTD,"9,613.99",Planned Maint - Ext Painting,Major Contracts,12-Oct-22,2223/07,LGE,N,
10051758,BELL DECORATING GROUP LTD,"9,424.17",Planned Maint - Ext Painting,Major Contracts,18-Oct-22,2223/07,LGE,N,
10051521,ST LAWRENCE PCC,610,Grants & Contrbns,Contributions & Donations,07-Oct-22,2223/07,SME,N,
10051647,BRETT VALE FC,300,Grants & Contrbns,Contributions & Donations,13-Oct-22,2223/07,SME,N,
20028151,ORBIT HOUSING ASSOCIATION,"2,500.00",Homeless Prevention Fund,Misc Supplies & Services Costs,09-Sep-22,2223/07,LGE,N,
10051743,YUM YUM TREE FUDGE LTD,316,Events & Awards,Advertising&mkting (non-staff),18-Oct-22,2223/07,SME,N,
10051783,SUFFOLK STYLE,714.94,Events & Awards,Advertising&mkting (non-staff),20-Oct-22,2223/07,SME,N,
10051799,THE SPORTING MEMORIES FOUNDATION,"9,942.00",Grants & Contrbns,Grants,20-Oct-22,2223/07,SME,N,
10051890,VODAFONE CORPORATE LTD,-65.08,ICT,Telephone Costs,25-Oct-22,2223/07,LGE,N,
1046,HADLEIGH MARKET FEOFFMENT CHARITY,-60,Endeavour House - HQ,Room Hire,30-Sep-22,2223/07,SME,Y,50%
1047,HADLEIGH MARKET FEOFFMENT CHARITY,60,Current Assets,LLOYDS GENERAL PAYMENTS,30-Sep-22,2223/07,SME,N,
10051579,VERTAS GROUP LTD,-6,Endeavour House - HQ,Misc Supplies & Services Costs,10-Oct-22,2223/07,SME,Y,50%
1045,NORTHERN HOUSING CONSORTIUM,186.72,Current Assets,LLOYDS GENERAL PAYMENTS,30-Sep-22,2223/07,SME,N,
1049,PORTAL PLAN QUEST LTD,34,Devt Management -Applications,Planning Fees,02-Sep-22,2223/07,SME,N,
20028169,AARON SERVICES LTD,"11,424.44",Current Liabilities,Cert IBS Creditors Holding ac,31-Oct-22,2223/08,SME,N,
20028194,AARON SERVICES LTD,"5,769.62",Current Liabilities,Cert IBS Creditors Holding ac,22-Nov-22,2223/08,SME,N,
20028195,AARON SERVICES LTD,168.46,Sheltered Accommodation,Repairs,22-Nov-22,2223/08,SME,N,
20028195,AARON SERVICES LTD,"5,588.98",Planned Maint - Heating,Property Servicing,22-Nov-22,2223/08,SME,N,
20028195,AARON SERVICES LTD,78.81,Voids Maintenance,BMBS Repairs Work,22-Nov-22,2223/08,SME,N,
20028201,AARON SERVICES LTD,"46,925.14",Current Liabilities,Cert IBS Creditors Holding ac,22-Nov-22,2223/08,SME,N,
10051806,ACADEMY BUILDING CONTRACTS LTD,"2,655.17","Fences, Gates and Walls",Repairs,21-Oct-22,2223/08,SME,N,
10051807,ACADEMY BUILDING CONTRACTS LTD,"1,113.02","Fences, Gates and Walls",Repairs,21-Oct-22,2223/08,SME,N,
10051808,ACADEMY BUILDING CONTRACTS LTD,"1,530.40",Building Services,Repairs,21-Oct-22,2223/08,SME,N,
10051810,ACADEMY BUILDING CONTRACTS LTD,"2,516.04","Fences, Gates and Walls",Repairs,21-Oct-22,2223/08,SME,N,
10051831,ACADEMY BUILDING CONTRACTS LTD,353.19,Building Services,Repairs,14-Oct-22,2223/08,SME,N,
10051938,ACADEMY BUILDING CONTRACTS LTD,"1,182.58","Fences, Gates and Walls",Repairs,28-Oct-22,2223/08,SME,N,
10051939,ACADEMY BUILDING CONTRACTS LTD,"1,113.02","Fences, Gates and Walls",Repairs,28-Oct-22,2223/08,SME,N,
10051940,ACADEMY BUILDING CONTRACTS LTD,"1,252.14","Fences, Gates and Walls",Repairs,28-Oct-22,2223/08,SME,N,
10051941,ACADEMY BUILDING CONTRACTS LTD,"1,391.27","Fences, Gates and Walls",Repairs,28-Oct-22,2223/08,SME,N,
10051942,ACADEMY BUILDING CONTRACTS LTD,"3,059.74","Fences, Gates and Walls",Repairs,28-Oct-22,2223/08,SME,N,
10051943,ACADEMY BUILDING CONTRACTS LTD,"1,391.27","Fences, Gates and Walls",Repairs,28-Oct-22,2223/08,SME,N,
10052092,ACADEMY BUILDING CONTRACTS LTD,290.01,Building Services,Repairs,04-Nov-22,2223/08,SME,N,
10052093,ACADEMY BUILDING CONTRACTS LTD,"2,921.67","Fences, Gates and Walls",Repairs,04-Nov-22,2223/08,SME,N,
10052094,ACADEMY BUILDING CONTRACTS LTD,973.89,"Fences, Gates and Walls",Repairs,04-Nov-22,2223/08,SME,N,
10052324,ACADEMY BUILDING CONTRACTS LTD,"1,921.99","Fences, Gates and Walls",Repairs,11-Nov-22,2223/08,SME,N,
10052495,ACADEMY BUILDING CONTRACTS LTD,"1,105.21","Fences, Gates and Walls",Repairs,18-Nov-22,2223/08,SME,N,
10052496,ACADEMY BUILDING CONTRACTS LTD,"1,222.41","Fences, Gates and Walls",Repairs,18-Nov-22,2223/08,SME,N,
10052215,AE WHITE SURFACING,411.85,Insurance Claims,Misc Premises Costs,31-Oct-22,2223/08,SME,N,
10052609,AE WHITE SURFACING,"1,450.00",Pld Maint/ Enhncmts-C Parks,Repairs,23-Nov-22,2223/08,SME,N,
10052084,ALPHETON GARAGE LTD,650,Taxi & Private Hire Licensing,Contracted Services,03-Nov-22,2223/08,SME,N,
10052549,ANGLIAN WATER,"2,252.78",Water Sampling,Sampling & Analysis,21-Nov-22,2223/08,LGE,N,
10052086,BOTTOMLINE TECHNOLOGIES,701.21,ICT,Software Licnse (Line of Bus) ,31-Oct-22,2223/08,LGE,Y,50%
10052165,BOWER FULLER,"5,699.73",Sheltered Accommodation,Fire Prevention,31-Oct-22,2223/08,SME,N,
10052169,BOWER FULLER,"1,776.70",Chilton Depot,Grounds & Site Maintenance,31-Oct-22,2223/08,SME,Y,50%
10052171,BOWER FULLER,954.63,Tenancy Services,Electricity,31-Oct-22,2223/08,SME,N,
10052172,BOWER FULLER,772.41,Sheltered Accommodation,Electricity,31-Oct-22,2223/08,SME,N,
10052173,BOWER FULLER,"1,588.38",Tenancy Services,Fire Prevention,31-Oct-22,2223/08,SME,N,
10052297,BROXAP LTD,"4,285.00",Open Spaces,Grounds & Site Maintenance,08-Nov-22,2223/08,LGE,N,
10052232,BUTTON & TURNER LTD,368.77,Open Spaces,Plant & Vehicle - Other costs,24-Oct-22,2223/08,SME,N,
10052065,AQUASAMPLERS,875,Water Sampling,Sampling & Analysis,30-Sep-22,2223/08,SME,N,
10052287,CHEQUERS HOTEL LTD,"1,470.00",Homelessness Private Sector,B&B Costs,31-Oct-22,2223/08,SME,N,
10052289,CHEQUERS HOTEL LTD,"1,120.00",Homelessness Private Sector,B&B Costs,31-Oct-22,2223/08,SME,N,
10052290,CHEQUERS HOTEL LTD,760,Homelessness Private Sector,B&B Costs,31-Oct-22,2223/08,SME,N,
10052291,CHEQUERS HOTEL LTD,360,Homelessness Private Sector,B&B Costs,31-Oct-22,2223/08,SME,N,
10052046,CHIPSIDE LTD,372.08,C Parks General,Contracted Services,30-Sep-22,2223/08,SME,N,
10051961,CLARKE FENCING LTD,362.04,Street & Major Road Cleansing,Plant & Vehicle - Other costs,28-Oct-22,2223/08,SME,N,
10051719,CLARKES OF WALSHAM LTD,318.81,Roofing,Repairs,14-Oct-22,2223/08,SME,N,
10052197,CLARKES OF WALSHAM LTD,749.59,Building Services,Repairs,07-Nov-22,2223/08,SME,N,
10052071,D W ADAMS LTD,"3,806.00",Council House Adaptions,Improvements,03-Nov-22,2223/08,SME,N,
10052082,D W ADAMS LTD,622,Disabled Facilities (Revenue),Repairs,03-Nov-22,2223/08,SME,N,
10052103,D W ADAMS LTD,260,Building Services,Repairs,04-Nov-22,2223/08,SME,N,
10052104,D W ADAMS LTD,807,Kitchens/Bathrooms,Repairs,04-Nov-22,2223/08,SME,N,
10052331,D W ADAMS LTD,"4,668.00",Council House Adaptions,Improvements,14-Nov-22,2223/08,SME,N,
10052332,D W ADAMS LTD,"4,690.00",Council House Adaptions,Improvements,14-Nov-22,2223/08,SME,N,
10052422,D W ADAMS LTD,265,Building Services,Repairs,17-Nov-22,2223/08,SME,N,
10052459,D W ADAMS LTD,"3,647.00",Council House Adaptions,Improvements,17-Nov-22,2223/08,SME,N,
10052515,D W ADAMS LTD,"4,826.00",Council House Adaptions,Improvements,21-Nov-22,2223/08,SME,N,
10052595,D W ADAMS LTD,399,Disabled Facilities (Revenue),Repairs,24-Nov-22,2223/08,SME,N,
10052663,EAST OF ENGLAND LGA,"2,189.00",Organisational Devt,Training,28-Nov-22,2223/08,SME,Y,50%
10052119,ENER-G SWITCH2 LTD,201.23,Temporary Accommodation,Repairs,04-Nov-22,2223/08,SME,N,
10052119,ENER-G SWITCH2 LTD,161.59,Temporary Accommodation,Repairs,04-Nov-22,2223/08,SME,N,
10052399,ENGLISH SECURITY,144.2,Chilton Depot,Fire Prevention,09-Nov-22,2223/08,SME,Y,50%
10052399,ENGLISH SECURITY,"1,520.35",Sheltered Accommodation,Fire Prevention,09-Nov-22,2223/08,SME,N,
10052399,ENGLISH SECURITY,797.5,Temporary Accommodation,Fire Prevention,09-Nov-22,2223/08,SME,N,
10052399,ENGLISH SECURITY,"4,032.45",Tenancy Services,Fire Prevention,09-Nov-22,2223/08,SME,N,
10052399,ENGLISH SECURITY,46.35,Tenancy Services,Repairs,09-Nov-22,2223/08,SME,N,
10052399,ENGLISH SECURITY,133.9,Wenham Depot,Fire Prevention,09-Nov-22,2223/08,SME,Y,50%
10052438,ENGLISH SECURITY,287.83,Building Services,Repairs,23-Sep-22,2223/08,SME,N,
10052439,ENGLISH SECURITY,631.53,Temporary Accommodation,Fire Prevention,23-Sep-22,2223/08,SME,N,
10051838,ENVIROVENT LTD,460,Building Services,Repairs,19-Oct-22,2223/08,SME,N,
10051839,ENVIROVENT LTD,460,Building Services,Repairs,19-Oct-22,2223/08,SME,N,
10051934,ENVIROVENT LTD,709,Insulation Imps,BMBS Repairs Work,25-Oct-22,2223/08,SME,N,
10052268,ENVIROVENT LTD,564.08,Insulation Imps,Improvements,07-Nov-22,2223/08,SME,N,
10052383,ENVIROVENT LTD,506,Dampness,Repairs,11-Nov-22,2223/08,SME,N,
10052563,ENVIROVENT LTD,583.63,Insulation Imps,Improvements,08-Nov-22,2223/08,SME,N,
10052566,ENVIROVENT LTD,460,Insulation Imps,Repairs,21-Nov-22,2223/08,SME,N,
10051857,FELLBRIDGE BUILDING SERVICES,"19,757.23",Major Imps,Improvements,24-Oct-22,2223/08,SME,N,
10051858,FELLBRIDGE BUILDING SERVICES,"14,183.81",Building Services,Repairs,24-Oct-22,2223/08,SME,N,
10051864,FELLBRIDGE BUILDING SERVICES,863.36,Building Services,Repairs,24-Oct-22,2223/08,SME,N,
10051870,FELLBRIDGE BUILDING SERVICES,714.29,Building Services,Repairs,25-Oct-22,2223/08,SME,N,
10051872,FELLBRIDGE BUILDING SERVICES,937.23,Kitchens/Bathrooms,Repairs,25-Oct-22,2223/08,SME,N,
10052282,FELLBRIDGE BUILDING SERVICES,"1,199.01",Building Services,Repairs,10-Nov-22,2223/08,SME,N,
10052369,FELLBRIDGE BUILDING SERVICES,344.24,Building Services,Repairs,14-Nov-22,2223/08,SME,N,
10052370,FELLBRIDGE BUILDING SERVICES,364.66,Building Services,Repairs,14-Nov-22,2223/08,SME,N,
10052442,FELLBRIDGE BUILDING SERVICES,958.25,Building Services,Repairs,17-Nov-22,2223/08,SME,N,
10052521,FELLBRIDGE BUILDING SERVICES,"11,226.13",Building Services,Repairs,21-Nov-22,2223/08,SME,N,
10052522,FELLBRIDGE BUILDING SERVICES,655.6,Building Services,Repairs,21-Nov-22,2223/08,SME,N,
10052523,FELLBRIDGE BUILDING SERVICES,"1,247.29",Kitchens/Bathrooms,Repairs,21-Nov-22,2223/08,SME,N,
10052527,FELLBRIDGE BUILDING SERVICES,907.76,Building Services,Repairs,21-Nov-22,2223/08,SME,N,
10052072,FORE-MOST GARAGE DOORS LTD,997,Building Services,Repairs,31-Oct-22,2223/08,SME,N,
10052072,FORE-MOST GARAGE DOORS LTD,"2,539.80","Garages, Forecourts & Stores",Repairs,31-Oct-22,2223/08,SME,N,
10052405,G & G SIGNS,791.5,Street Naming & Numbering,Signs,11-Nov-22,2223/08,SME,N,
10052035,GB ADAPTIONS LTD,"5,794.00",Mand Disabled Facilities Grant,Grants,02-Nov-22,2223/08,SME,N,
10052298,GB ADAPTIONS LTD,"8,198.99",Mand Disabled Facilities Grant,Grants,10-Nov-22,2223/08,SME,N,
10052599,GB ADAPTIONS LTD,"5,392.00",Mand Disabled Facilities Grant,Grants,24-Nov-22,2223/08,SME,N,
10051486,G4S CASH SOLUTIONS LTD,554.5,C Parks General,Audit Fees,30-Sep-22,2223/08,LGE,N,
10052116,G4S CASH SOLUTIONS LTD,343.79,C Parks General,Audit Fees,31-Oct-22,2223/08,LGE,N,
10052254,GHB ROOFING,"30,849.82",Roofing,Repairs,31-Oct-22,2223/08,SME,N,
10052429,GHB ROOFING,"8,965.00",Roofing,Improvements,31-Oct-22,2223/08,SME,N,
10052430,GHB ROOFING,"11,607.00",Roofing,Improvements,31-Oct-22,2223/08,SME,N,
10052642,HAYMARKET BUSINESS MEDIA,345,Open Spaces,Subscriptions,08-Nov-22,2223/08,LGE,N,
10052186,JMP SERVICES LTD,420,Street & Major Road Cleansing,Contracted Services,07-Nov-22,2223/08,SME,N,
10052408,JMP SERVICES LTD,400,Street & Major Road Cleansing,Contracted Services,16-Nov-22,2223/08,SME,N,
10052091,JOHN GROSE GROUP LTD,628,Open Spaces,Plant & Vehicle - Other costs,31-Oct-22,2223/08,SME,N,
10052264,KEN GRIME & SON LTD,868.8,Building Services,Repairs,10-Nov-22,2223/08,SME,N,
10052371,KEN GRIME & SON LTD,"1,216.35",Building Services,Repairs,14-Nov-22,2223/08,SME,N,
10051697,M & H CIVIL ENGINEERING LTD,"1,671.03",Building Services,Repairs,14-Oct-22,2223/08,SME,N,
10052222,M & H CIVIL ENGINEERING LTD,715.84,Building Services,Repairs,07-Nov-22,2223/08,SME,N,
10052223,M & H CIVIL ENGINEERING LTD,857.93,Building Services,Repairs,08-Nov-22,2223/08,SME,N,
10052349,M & H CIVIL ENGINEERING LTD,"1,091.80",Building Services,Repairs,14-Nov-22,2223/08,SME,N,
10052006,MATERIAL CHANGE COMPOSTING LTD,"1,466.52",Open Spaces,Waste Disposal,31-Oct-22,2223/08,LGE,N,
10052283,MB TREES (EAST ANGLIA) LTD,"3,280.00",Amenity Areas,Tree felling/maintenance,10-Nov-22,2223/08,SME,N,
10052461,MB TREES (EAST ANGLIA) LTD,"2,150.00",Building Services,Repairs,17-Nov-22,2223/08,SME,N,
10052603,MB TREES (EAST ANGLIA) LTD,"2,250.00",Tenancy Services,Tree felling/maintenance,24-Nov-22,2223/08,SME,N,
10052022,MERCURY BUILDING SERVICES LTD,"3,029.00",Kingfisher Leisure Centre,Repairs,01-Nov-22,2223/08,SME,N,
10052207,MIXBROW LTD,"3,779.00",Council House Adaptions,Improvements,31-Oct-22,2223/08,SME,N,
10052208,MIXBROW LTD,739,Council House Adaptions,Improvements,31-Oct-22,2223/08,SME,N,
10052528,MIXBROW LTD,"1,957.00",Council House Adaptions,Improvements,18-Nov-22,2223/08,SME,N,
10052538,MIXBROW LTD,"2,668.00",Council House Adaptions,Improvements,11-Nov-22,2223/08,SME,N,
10052539,MIXBROW LTD,"3,409.53",Council House Adaptions,Improvements,10-Nov-22,2223/08,SME,N,
10052540,MIXBROW LTD,"8,592.00",Council House Adaptions,Improvements,18-Nov-22,2223/08,SME,N,
10052544,MIXBROW LTD,"7,894.00",Council House Adaptions,Improvements,18-Nov-22,2223/08,SME,N,
10052546,MIXBROW LTD,"2,685.00",Council House Adaptions,Improvements,18-Nov-22,2223/08,SME,N,
10052386,MONTHIND CLEAN LTD,665.83,Jnt Waste Contract,General Cleaning,15-Nov-22,2223/08,LGE,Y,50%
10051691,ORWELL HOUSING ASSOCIATION LTD,575.8,Sheltered Accommodation,Contracted Services,14-Sep-22,2223/08,LGE,N,
10051710,ORWELL HOUSING ASSOCIATION LTD,575.8,Sheltered Accommodation,Contracted Services,13-Oct-22,2223/08,LGE,N,
10051896,ORWELL HOUSING ASSOCIATION LTD,471.32,Sheltered Accommodation,Horticultural Purchases,21-Oct-22,2223/08,LGE,N,
10051897,ORWELL HOUSING ASSOCIATION LTD,471.32,Sheltered Accommodation,Horticultural Purchases,21-Oct-22,2223/08,LGE,N,
10051898,ORWELL HOUSING ASSOCIATION LTD,471.32,Sheltered Accommodation,Horticultural Purchases,21-Oct-22,2223/08,LGE,N,
10051803,PRO-FLAT SPECIALIST SERVICES LTD,823,Building Services,Repairs,20-Oct-22,2223/08,SME,N,
10051881,REID PLUMBING & HEATING CONTRACTORS LTD,"5,922.76",Central Heating,Major Contracts,25-Oct-22,2223/08,SME,N,
10052013,REID PLUMBING & HEATING CONTRACTORS LTD,"5,922.16",Central Heating,Major Contracts,01-Nov-22,2223/08,SME,N,
10052200,REID PLUMBING & HEATING CONTRACTORS LTD,"20,925.56",Central Heating,Major Contracts,07-Nov-22,2223/08,SME,N,
10051862,SEAGER HOME SOLUTIONS,"5,782.00",Council House Adaptions,Improvements,24-Oct-22,2223/08,SME,N,
10052388,SEAGER HOME SOLUTIONS,"35,348.71",Kitchens/Bathrooms,Major Contracts,15-Nov-22,2223/08,SME,N,
10051983,SSI SCHAEFER LTD,"2,900.00",Bins,Bins,31-Oct-22,2223/08,SME,N,
10051983,SSI SCHAEFER LTD,"2,950.00",Bins,Bins,31-Oct-22,2223/08,SME,N,
10052536,SUDBURY OFFICE SUPPLIES,262.36,Central Stationery & equip,Stationery,21-Nov-22,2223/08,SME,N,
10052042,SUFFOLK TREE SERVICES LTD,800,Public Tree Programme,Tree felling/maintenance,01-Nov-22,2223/08,SME,N,
10052143,SUFFOLK TREE SERVICES LTD,"1,680.00",Tenancy Services,Tree felling/maintenance,04-Nov-22,2223/08,SME,N,
10052212,SUFFOLK TREE SERVICES LTD,"3,300.00",Public Tree Programme,Tree felling/maintenance,07-Nov-22,2223/08,SME,N,
10052246,SUFFOLK TREE SERVICES LTD,350,Public Tree Programme,Tree felling/maintenance,07-Nov-22,2223/08,SME,N,
10052655,SUFFOLK TREE SERVICES LTD,850,Public Tree Programme,Tree felling/maintenance,25-Nov-22,2223/08,SME,N,
10051936,SUREFIX,"7,400.00",Window & Door Rplcmts,Improvements,28-Oct-22,2223/08,SME,N,
10051937,SUREFIX,"7,400.00",Window & Door Rplcmts,Improvements,28-Oct-22,2223/08,SME,N,
10052107,SUREFIX,483.06,Building Services,Repairs,01-Nov-22,2223/08,SME,N,
10052108,SUREFIX,"2,450.00",Window & Door Rplcmts,Improvements,01-Nov-22,2223/08,SME,N,
10052109,SUREFIX,900,Major Imps,Repairs,31-Oct-22,2223/08,SME,N,
10052305,SUREFIX,"1,125.00",Major Imps,Improvements,09-Nov-22,2223/08,SME,N,
10052306,SUREFIX,"4,281.77",Major Imps,Improvements,10-Nov-22,2223/08,SME,N,
10052450,SUREFIX,"1,505.48",Window & Door Rplcmts,Repairs,14-Nov-22,2223/08,SME,N,
10052451,SUREFIX,"1,300.00",Major Imps,Improvements,15-Nov-22,2223/08,SME,N,
10052452,SUREFIX,"1,050.00",Major Imps,Improvements,16-Nov-22,2223/08,SME,N,
10052643,SUREFIX,628,Window & Door Rplcmts,Repairs,18-Nov-22,2223/08,SME,N,
10052644,SUREFIX,550,Window & Door Rplcmts,Repairs,24-Nov-22,2223/08,SME,N,
10052645,SUREFIX,800,Window & Door Rplcmts,Repairs,23-Nov-22,2223/08,SME,N,
10052646,SUREFIX,"7,150.00",Window & Door Rplcmts,Repairs,23-Nov-22,2223/08,SME,N,
10051837,THERMATECH,"1,575.00",Tenancy Services,Fire Prevention,23-Oct-22,2223/08,SME,N,
10051846,THERMATECH,275,Temporary Accommodation,Fire Prevention,23-Oct-22,2223/08,SME,N,
10052003,THERMATECH,"2,500.00",Sheltered Accommodation,Fire Prevention,31-Oct-22,2223/08,SME,N,
10052454,THERMATECH,350,Tenancy Services,Fire Prevention,17-Nov-22,2223/08,SME,N,
10052455,THERMATECH,275,Temporary Accommodation,Fire Prevention,17-Nov-22,2223/08,SME,N,
10052456,THERMATECH,275,Temporary Accommodation,Fire Prevention,17-Nov-22,2223/08,SME,N,
10052457,THERMATECH,450,Temporary Accommodation,Fire Prevention,17-Nov-22,2223/08,SME,N,
10052458,THERMATECH,450,Temporary Accommodation,Fire Prevention,17-Nov-22,2223/08,SME,N,
10051333,WEST END REHOMING,"11,000.00",Dog Control,Kennels Retainer,01-Oct-22,2223/08,SME,N,
10052299,WINDIMAN LTD,"1,720.00",Window & Door Rplcmts,Improvements,11-Nov-22,2223/08,SME,N,
10051954,WORKWEAR (EAST ANGLIA) LTD,257.48,Street & Major Road Cleansing,Protective clothing,04-Oct-22,2223/08,SME,N,
10051970,WORKWEAR (EAST ANGLIA) LTD,296.63,Open Spaces,Protective clothing,28-Oct-22,2223/08,SME,N,
10051970,WORKWEAR (EAST ANGLIA) LTD,296.32,Street & Major Road Cleansing,Protective clothing,28-Oct-22,2223/08,SME,N,
10052592,WORKWEAR (EAST ANGLIA) LTD,189.65,Open Spaces,Protective clothing,22-Nov-22,2223/08,SME,N,
10052592,WORKWEAR (EAST ANGLIA) LTD,187.63,Street & Major Road Cleansing,Protective clothing,22-Nov-22,2223/08,SME,N,
10052113,MITIE PROPERTY SERVICES (UK) LTD,"27,232.16",Planned Maint - Ext Painting,External Painting,04-Nov-22,2223/08,SME,N,
10052285,IPSWICH BOROUGH COUNCIL,"2,614.06",Shared Revenues Partnership,Contributions to other Bodies,24-Oct-22,2223/08,LGE,N,
10052568,SERCO LTD,453.44,Street & Major Road Cleansing,Plant & Vehicle - Other costs,11-Nov-22,2223/08,LGE,N,
20028203,EDF ENERGY,537.23,Belle Vue House,Electricity,15-Nov-22,2223/08,LGE,N,
20028203,EDF ENERGY,"1,394.43",C Parks General,Electricity,15-Nov-22,2223/08,LGE,N,
20028203,EDF ENERGY,4.92,Calais St Depot,Electricity,15-Nov-22,2223/08,LGE,N,
20028203,EDF ENERGY,"4,074.08",Chilton Depot,Electricity,15-Nov-22,2223/08,LGE,Y,50%
20028203,EDF ENERGY,"1,377.30",Climate Change and Sustainabil,Electricity,15-Nov-22,2223/08,LGE,N,
20028203,EDF ENERGY,307.39,Community Safety-CCTV,Electricity,15-Nov-22,2223/08,LGE,N,
20028203,EDF ENERGY,55.45,Hadleigh Market,Electricity,15-Nov-22,2223/08,LGE,N,
20028203,EDF ENERGY,"21,255.12",Hadleigh Pool,Electricity,15-Nov-22,2223/08,LGE,N,
20028203,EDF ENERGY,21.62,Headquarters General,Electricity,15-Nov-22,2223/08,LGE,N,
20028203,EDF ENERGY,"2,776.27",HQ Energy,Electricity,15-Nov-22,2223/08,LGE,N,
20028203,EDF ENERGY,"125,429.90",Kingfisher Leisure Centre,Electricity,15-Nov-22,2223/08,LGE,N,
20028203,EDF ENERGY,913.75,Public Conveniences,Electricity,15-Nov-22,2223/08,LGE,N,
20028203,EDF ENERGY,"1,038.76",Sewage Treatment Works,Electricity,15-Nov-22,2223/08,LGE,N,
20028203,EDF ENERGY,"38,271.30",Sheltered Accommodation,Electricity,15-Nov-22,2223/08,LGE,N,
20028203,EDF ENERGY,620.17,SP Comm Alarms (Non-SH),Electricity,15-Nov-22,2223/08,LGE,N,
20028203,EDF ENERGY,"1,532.19",Temporary Accommodation,Electricity,15-Nov-22,2223/08,LGE,N,
20028203,EDF ENERGY,"18,236.69",Tenancy Services,Electricity,15-Nov-22,2223/08,LGE,N,
20028203,EDF ENERGY,"2,445.68",Wenham Depot,Electricity,15-Nov-22,2223/08,LGE,Y,50%
20028190,GPC BARCLAYS,"11,126.95",Current Assets,Barclaycard Control,16-Nov-22,2223/08,LGE,Y,20%
10051931,STANNAH STAIRLIFTS LTD,"2,478.00",Council House Adaptions,Improvements,26-Sep-22,2223/08,LGE,N,
10052039,STANNAH STAIRLIFTS LTD,"2,834.00",Council House Adaptions,Improvements,02-Nov-22,2223/08,LGE,N,
20028196,COMPUTERSHARE ,413,Current Assets,ChildCare Vouchers-Control,24-Nov-22,2223/08,LGE,N,
20028198,COMPUTERSHARE ,413,Current Assets,ChildCare Vouchers-Control,24-Nov-22,2223/08,LGE,N,
10052261,BRANTHAM MANAGEMENT CIC,"2,952.00",Comm Devt Grants,Grants,09-Nov-22,2223/08,SME,N,
10052580,BURES COMMUNITY CENTRE,"1,000.00",CCB Warm Spaces,"Equipment, Tools & Materials",23-Nov-22,2223/08,SME,N,
20028173,BURES ST MARY PARISH COUNCIL,370.5,Street & Major Road Cleansing,Contributions & Donations,02-Nov-22,2223/08,SME,N,
10051753,EAST BERGHOLT PARISH COUNCIL,998.27,Grants & Contrbns,Contributions & Donations,18-Oct-22,2223/08,SME,N,
20028175,EAST BERGHOLT PARISH COUNCIL,"1,235.00",Street & Major Road Cleansing,Contributions & Donations,02-Nov-22,2223/08,SME,N,
10052105,EASTERN ANGLES THEATRE CO LTD,"6,400.00",Grants & Contrbns,Grants,04-Nov-22,2223/08,SME,N,
10052558,GREAT WALDINGFIELD BOWLS & SOCIAL CLUB,"1,200.00",Covid-19 Test and Trace,Grants,23-Nov-22,2223/08,SME,N,
20028176,HOLBROOK PARISH COUNCIL,802.75,Street & Major Road Cleansing,Contributions & Donations,02-Nov-22,2223/08,SME,N,
20028178,LAVENHAM PARISH COUNCIL,"2,593.50",Street & Major Road Cleansing,Contributions & Donations,02-Nov-22,2223/08,SME,N,
20028179,LONG MELFORD PARISH COUNCIL,"1,111.50",Street & Major Road Cleansing,Contributions & Donations,02-Nov-22,2223/08,SME,N,
10052411,POLSTEAD PARISH COUNCIL,"1,100.00",Open Spaces,Contracted Services,14-Nov-22,2223/08,SME,N,
10051729,STOKE BY NAYLAND PARISH COUNCIL,305,Grants & Contrbns,Contributions & Donations,17-Oct-22,2223/08,SME,N,
20028177,STRATFORD ST MARY PARISH COUNCIL,308.75,Street & Major Road Cleansing,Contributions & Donations,02-Nov-22,2223/08,SME,N,
10052203,SUDBURY COMMON LANDS CHARITY,"3,788.11",Open Spaces,Contracted Services,08-Nov-22,2223/08,SME,N,
10052203,SUDBURY COMMON LANDS CHARITY,"6,622.47",Open Spaces,Contracted Services,08-Nov-22,2223/08,SME,N,
10052620,SUDBURY TOWN COUNCIL,500,Grants & Contrbns,Contributions & Donations,25-Nov-22,2223/08,SME,N,
10052121,SUFFOLK ARTLINK,"7,755.80",Grants & Contrbns,Grants,04-Nov-22,2223/08,SME,N,
10051458,SUFFOLK COUNTY COUNCIL,"1,070.00",Land Chgs,Contracted Services,05-Oct-22,2223/08,LGE,N,
10051878,SUFFOLK COUNTY COUNCIL,400,Council House Adaptions,Improvements,25-Oct-22,2223/08,LGE,N,
10052012,SUFFOLK COUNTY COUNCIL,"3,647.45",Community Safety-General,Contributions & Donations,01-Nov-22,2223/08,LGE,N,
10052102,SUFFOLK COUNTY COUNCIL,"1,523.00",Pre App Charging,Prof & Consultancy Fees,03-Nov-22,2223/08,LGE,N,
10052271,SUFFOLK COUNTY COUNCIL,"1,016.72",Info Mgmt,Contracted Services,09-Nov-22,2223/08,LGE,Y,50%
10052272,SUFFOLK COUNTY COUNCIL,870,Land Chgs,Contracted Services,09-Nov-22,2223/08,LGE,N,
10052304,SUFFOLK COUNTY COUNCIL,"1,258.76",Domestic Waste,MRF Disposal,10-Nov-22,2223/08,LGE,N,
10052304,SUFFOLK COUNTY COUNCIL,"11,957.94",Garden Waste,Garden Waste Disposal,10-Nov-22,2223/08,LGE,N,
10052382,SUFFOLK COUNTY COUNCIL,732.31,ICT,Desktop Software,14-Nov-22,2223/08,LGE,Y,50%
10052519,SUFFOLK COUNTY COUNCIL,"1,045.00",ICT,Computer Equpt Purchases,18-Nov-22,2223/08,LGE,Y,50%
10052520,SUFFOLK COUNTY COUNCIL,"1,239.07",General Rechargeable Works,Misc Supplies & Services Costs,18-Nov-22,2223/08,LGE,N,
10052662,SUFFOLK COUNTY COUNCIL,"4,332.55",ICT,Photocopying,25-Nov-22,2223/08,LGE,Y,50%
10051993,FENN WRIGHT LLP,450,General/Supervision & Mgmt,Prof & Consultancy Fees,30-Oct-22,2223/08,SME,N,
10052210,FENN WRIGHT LLP,400,Leaseholders,Prof & Consultancy Fees,08-Nov-22,2223/08,SME,N,
10051964,ROYAL MAIL,278.44,Electoral Registration,Postage,31-Oct-22,2223/08,LGE,Y,100%
10051835,REED SPECIALIST RECRUITMENT LTD,772.56,Financial Servs,Agency Staff,14-Oct-22,2223/08,LGE,Y,50%
10051960,REED SPECIALIST RECRUITMENT LTD,772.56,Financial Servs,Agency Staff,21-Oct-22,2223/08,LGE,Y,50%
10052124,REED SPECIALIST RECRUITMENT LTD,772.56,Financial Servs,Agency Staff,28-Oct-22,2223/08,LGE,Y,50%
10052321,REED SPECIALIST RECRUITMENT LTD,766.64,Financial Servs,Agency Staff,04-Nov-22,2223/08,LGE,Y,50%
10052502,REED SPECIALIST RECRUITMENT LTD,766.64,Financial Servs,Agency Staff,11-Nov-22,2223/08,LGE,Y,50%
10052648,REED SPECIALIST RECRUITMENT LTD,766.64,Financial Servs,Agency Staff,18-Nov-22,2223/08,LGE,Y,50%
10052641,UNIT 4 BUSINESS SOFTWARE LIMITED,"17,757.91",ICT - Finance System,Contracted Services,24-Nov-22,2223/08,LGE,Y,50%
10052649,TELEFONICA UK LIMITED - O2,332.86,ICT,Telephone Costs,27-Nov-22,2223/08,LGE,Y,50%
10052146,BT PAYMENT SERVICES,"5,380.54",ICT,Telephone Costs,04-Nov-22,2223/08,LGE,N,
10051991,EAST OF ENGLAND CO-OPERATIVE SOCIETY LTD,"1,413.00",Environmental Protection,Contracted Services,04-Oct-22,2223/08,LGE,N,
10052220,EAST OF ENGLAND CO-OPERATIVE SOCIETY LTD,"2,378.75",Cost of Democracy,Room Hire,08-Aug-22,2223/08,LGE,N,
10052309,LEX AUTOLEASE,323.02,Building Services,Lease Cars - Payment,30-Oct-22,2223/08,SME,Y,50%
10052310,LEX AUTOLEASE,304.25,Building Services,Lease Cars - Payment,30-Oct-22,2223/08,SME,Y,50%
10052311,LEX AUTOLEASE,365.95,Building Services,Lease Cars - Payment,30-Oct-22,2223/08,SME,Y,50%
10052312,LEX AUTOLEASE,365.95,Building Services,Lease Cars - Payment,30-Oct-22,2223/08,SME,Y,50%
10052313,LEX AUTOLEASE,376.73,Building Services,Lease Cars - Payment,03-Nov-22,2223/08,SME,Y,50%
10052485,LEX AUTOLEASE,318.97,Building Services,Lease Cars - Payment,07-Nov-22,2223/08,SME,Y,50%
10052486,LEX AUTOLEASE,332.77,Building Services,Lease Cars - Payment,09-Nov-22,2223/08,SME,Y,50%
10052487,LEX AUTOLEASE,380.78,Building Services,Lease Cars - Payment,09-Nov-22,2223/08,SME,Y,50%
10052488,LEX AUTOLEASE,311.34,Building Services,Lease Cars - Payment,09-Nov-22,2223/08,SME,Y,50%
10052489,LEX AUTOLEASE,336.11,Building Services,Lease Cars - Payment,09-Nov-22,2223/08,SME,Y,50%
10052490,LEX AUTOLEASE,331.38,Building Services,Lease Cars - Payment,10-Nov-22,2223/08,SME,Y,50%
10052491,LEX AUTOLEASE,311.43,Building Services,Lease Cars - Payment,10-Nov-22,2223/08,SME,Y,50%
10052492,LEX AUTOLEASE,324.97,Building Services,Lease Cars - Payment,10-Nov-22,2223/08,SME,Y,50%
10052493,LEX AUTOLEASE,346.16,Building Services,Lease Cars - Payment,10-Nov-22,2223/08,SME,Y,50%
10052494,LEX AUTOLEASE,355.2,Building Services,Lease Cars - Payment,13-Nov-22,2223/08,SME,Y,50%
10052508,LEX AUTOLEASE,328.72,Building Services,Lease Cars - Payment,09-Nov-22,2223/08,SME,Y,50%
10052509,LEX AUTOLEASE,346.16,Building Services,Lease Cars - Payment,10-Oct-22,2223/08,SME,Y,50%
10051935,CIVICA UK LIMITED,571.42,Lettings & Allocations,Contracted Services,28-Oct-22,2223/08,LGE,N,
10052098,CIVICA UK LIMITED,"2,857.00",Lettings & Allocations,Contracted Services,28-Oct-22,2223/08,LGE,N,
10052099,CIVICA UK LIMITED,"10,850.00",Lettings & Allocations,Contracted Services,21-Oct-22,2223/08,LGE,N,
10052618,LANDMARK CHAMBERS,"2,775.00",Devt Management -Applications,Prof & Consultancy Fees,23-Nov-22,2223/08,SME,N,
20028204,GAZPROM ENERGY,246.01,Belle Vue House,Gas,22-Nov-22,2223/08,SME,N,
20028204,GAZPROM ENERGY,71.18,HQ Energy,Gas,22-Nov-22,2223/08,SME,N,
20028204,GAZPROM ENERGY,"3,470.86",Sheltered Accommodation,Gas,22-Nov-22,2223/08,SME,N,
20028204,GAZPROM ENERGY,261.03,Temporary Accommodation,Gas,22-Nov-22,2223/08,SME,N,
10052517,SUDBURY & DISTRICT CAB,300,Grants & Contrbns,Contributions & Donations,21-Nov-22,2223/08,SME,N,
10052123,THE QUAY THEATRE AT SUDBURY,"11,500.00",Grants & Contrbns,Grants,04-Nov-22,2223/08,SME,N,
10051725,WHYBROW PROPERTY SOLUTIONS LTD,425,Building Services,Repairs,17-Oct-22,2223/08,SME,N,
10051866,WHYBROW PROPERTY SOLUTIONS LTD,"8,000.00",Building Services,Capital Income,21-Oct-22,2223/08,SME,N,
10051876,WHYBROW PROPERTY SOLUTIONS LTD,"10,000.00",Building Services,Capital Income,21-Oct-22,2223/08,SME,N,
10051877,WHYBROW PROPERTY SOLUTIONS LTD,"4,570.16",Building Services,Capital Income,21-Oct-22,2223/08,SME,N,
10051950,WHYBROW PROPERTY SOLUTIONS LTD,400,Building Services,Repairs,28-Oct-22,2223/08,SME,N,
10051951,WHYBROW PROPERTY SOLUTIONS LTD,"11,659.61",Building Services,Capital Income,28-Oct-22,2223/08,SME,N,
10051952,WHYBROW PROPERTY SOLUTIONS LTD,"6,000.00",Major Imps,Repairs,28-Oct-22,2223/08,SME,N,
10052193,WHYBROW PROPERTY SOLUTIONS LTD,"5,585.47",Major Imps,Repairs,07-Nov-22,2223/08,SME,N,
10052195,WHYBROW PROPERTY SOLUTIONS LTD,"1,316.00",Council House Adaptions,Improvements,07-Nov-22,2223/08,SME,N,
10052196,WHYBROW PROPERTY SOLUTIONS LTD,"11,125.38",Building Services,Capital Income,07-Nov-22,2223/08,SME,N,
10052217,WHYBROW PROPERTY SOLUTIONS LTD,"1,097.50",Structural Works,Improvements,02-Sep-22,2223/08,SME,N,
10052338,WHYBROW PROPERTY SOLUTIONS LTD,"5,280.60",Kitchens/Bathrooms,Improvements,28-Oct-22,2223/08,SME,N,
10052416,WHYBROW PROPERTY SOLUTIONS LTD,"4,000.00",Building Services,Repairs,16-Nov-22,2223/08,SME,N,
10052417,WHYBROW PROPERTY SOLUTIONS LTD,"5,000.00",Building Services,Repairs,16-Nov-22,2223/08,SME,N,
10052562,WHYBROW PROPERTY SOLUTIONS LTD,"2,535.00",Building Services,Repairs,16-Nov-22,2223/08,SME,N,
10052602,WHYBROW PROPERTY SOLUTIONS LTD,"2,587.14","Garages, Forecourts & Stores",Improvements,07-Feb-22,2223/08,SME,N,
10051973,L A C CLEANING CONTRACTORS LIMITED,696,Wenham Depot TDP,General Cleaning,24-Oct-22,2223/08,SME,Y,50%
10052100,L A C CLEANING CONTRACTORS LIMITED,648.48,Sheltered Accommodation,General Cleaning,24-Oct-22,2223/08,SME,N,
10052139,L A C CLEANING CONTRACTORS LIMITED,355.5,Building Services,Repairs,04-Nov-22,2223/08,SME,N,
10052141,L A C CLEANING CONTRACTORS LIMITED,395,Building Services,Repairs,07-Nov-22,2223/08,SME,N,
10052142,L A C CLEANING CONTRACTORS LIMITED,870,Building Services,Repairs,07-Nov-22,2223/08,SME,N,
10052584,L A C CLEANING CONTRACTORS LIMITED,942.9,Wenham Depot TDP,General Cleaning,22-Nov-22,2223/08,SME,Y,50%
10052589,L A C CLEANING CONTRACTORS LIMITED,648.48,Sheltered Accommodation,General Cleaning,22-Nov-22,2223/08,SME,N,
10052206,ARMSTRONG YORK ASBESTOS ENVIRONMENTAL,"8,991.53",Asbestos Survey & Reinspection,Prof & Consultancy Fees,31-Oct-22,2223/08,SME,N,
10052468,BAREFOOT & GILLES LTD,"7,500.00",Hadleigh A1071 Workspace,Prof & Consultancy Fees,15-Nov-22,2223/08,SME,N,
10051928,STOWE VETERINARY GROUP,341.59,Animal Welfare Licensing,Prof & Consultancy Fees,18-Oct-22,2223/08,SME,N,
10052112,COMMUNITY ACTION SUFFOLK,"9,971.00",Grants & Contrbns,Grants,04-Nov-22,2223/08,SME,N,
10052114,COMMUNITY ACTION SUFFOLK,"8,018.00",Grants & Contrbns,Grants,04-Nov-22,2223/08,SME,N,
10052122,COMMUNITY ACTION SUFFOLK,"5,000.00",Grants & Contrbns,Grants,04-Nov-22,2223/08,SME,N,
10052184,CONCERTUS DESIGN & PROPERTY CONSULTANTS,"1,005.00",Assets & Development,Repairs,29-Apr-22,2223/08,SME,N,
10052185,CONCERTUS DESIGN & PROPERTY CONSULTANTS,500,Public Conveniences,Repairs,31-May-22,2223/08,SME,N,
10052218,CONCERTUS DESIGN & PROPERTY CONSULTANTS,897.5,Public Conveniences,Repairs,30-Jun-22,2223/08,SME,N,
10052199,OFFICE FOR NATIONAL STATISTICS,300,Economy & Business,Prof & Consultancy Fees,07-Nov-22,2223/08,LGE,Y,50%
10052209,OPUS PEOPLE SOLUTIONS LTD,382.82,Household Support Grant,Agency Staff,03-Nov-22,2223/08,SME,N,
10052209,OPUS PEOPLE SOLUTIONS LTD,35.94,Housing Standards,Agency Staff,03-Nov-22,2223/08,SME,N,
10052374,OPUS PEOPLE SOLUTIONS LTD,587.95,Electoral Registration,Agency Staff,10-Nov-22,2223/08,SME,Y,51.50%
10052374,OPUS PEOPLE SOLUTIONS LTD,78.63,Housing Standards,Agency Staff,10-Nov-22,2223/08,SME,N,
10052537,OPUS PEOPLE SOLUTIONS LTD,849.56,Electoral Registration,Agency Staff,17-Nov-22,2223/08,SME,Y,47%
10052537,OPUS PEOPLE SOLUTIONS LTD,101.09,Housing Standards,Agency Staff,17-Nov-22,2223/08,SME,N,
10052044,ROSE BUILDERS LTD,"97,379.12",Structural Works,Major Contracts,31-Oct-22,2223/08,SME,N,
10052126,ECOSYSTEMS TREE & GROUNDS CARE,810,Public Tree Programme,Tree felling/maintenance,05-Nov-22,2223/08,SME,N,
10052127,ECOSYSTEMS TREE & GROUNDS CARE,"5,760.00",Public Tree Programme,Tree felling/maintenance,05-Nov-22,2223/08,SME,N,
10052128,ECOSYSTEMS TREE & GROUNDS CARE,"1,750.00",Amenity Areas,Tree felling/maintenance,05-Nov-22,2223/08,SME,N,
10052129,ECOSYSTEMS TREE & GROUNDS CARE,750,Neighbourhood Services,Grounds & Site Maintenance,05-Nov-22,2223/08,SME,N,
10052224,CORNERSTONE BARRISTERS,300,Planning Enforcement,Legal Expenses,07-Nov-22,2223/08,SME,N,
10052616,POLSTEAD VILLAGE HALL MGMT COMMITTEE,"4,910.00",Covid-19 Test and Trace,Grants,25-Nov-22,2223/08,SME,N,
10051902,COLLINS SKIP HIRE,550,Building Services,Waste Disposal,24-Oct-22,2223/08,SME,Y,50%
10051968,COLLINS SKIP HIRE,300,Major Imps,Repairs,31-Oct-22,2223/08,SME,N,
10051969,COLLINS SKIP HIRE,275,Building Services,Waste Disposal,31-Oct-22,2223/08,SME,Y,50%
10052194,COLLINS SKIP HIRE,825,Building Services,Waste Disposal,07-Nov-22,2223/08,SME,Y,50%
10052329,COLLINS SKIP HIRE,550,Building Services,Waste Disposal,14-Nov-22,2223/08,SME,Y,50%
10052507,COLLINS SKIP HIRE,550,Building Services,Waste Disposal,21-Nov-22,2223/08,SME,Y,50%
10052073,POSTURITE LTD,495,Organisational Devt,Health & Safety Training,02-Nov-22,2223/08,SME,Y,50%
10052303,POSTURITE LTD,"4,729.00",Health & Safety,Furniture,10-Nov-22,2223/08,SME,Y,50%
10052625,GREAT WALDINGFIELD VILLAGE HALL,"2,500.00",CCB Warm Spaces,"Equipment, Tools & Materials",25-Nov-22,2223/08,SME,N,
10052434,BIRKETTS LLP,"2,185.50",Organisational Devt,Legal Expenses,29-Sep-22,2223/08,LGE,Y,50%
10052462,FORESOLUTIONS LTD,"1,082.50",Open Spaces,Plant & Vehicle - Other costs,14-Nov-22,2223/08,SME,N,
10052462,FORESOLUTIONS LTD,"1,082.50",Street & Major Road Cleansing,Plant & Vehicle - Other costs,14-Nov-22,2223/08,SME,N,
10052067,PENNA PLC,"14,161.00",Management Team,Agency Staff,02-Nov-22,2223/08,SME,Y,50%
10052068,PENNA PLC,"13,640.00",Management Team,Agency Staff,02-Nov-22,2223/08,SME,Y,50%
10052481,MORTIMER CONTRACTS LIMITED,425,Bldg Regs Chargeable Serv,Signs,18-Nov-22,2223/08,SME,N,
10052526,FROST AND PARTNERS,"1,298.00",Rent Deposit Scheme,Misc Premises Costs,21-Nov-22,2223/08,SME,N,
10052712,FROST AND PARTNERS,600,Homeless Prevention Fund,Misc Supplies & Services Costs,29-Nov-22,2223/08,SME,N,
10052023,SUFFOLK MARKET EVENTS,"1,393.90",BRRP-MarketTownVision&Invest,Prof & Consultancy Fees,01-Nov-22,2223/08,SME,Y,40%
10052425,SUFFOLK MARKET EVENTS,650,Hadleigh Market,Contracted Services,14-Nov-22,2223/08,SME,N,
10051867,HAYS SPECIALIST RECRUITMENT LTD,"1,454.68",Assets & Development,Agency Staff,24-Oct-22,2223/08,LGE,Y,50%
10051867,HAYS SPECIALIST RECRUITMENT LTD,363.68,General/Supervision & Mgmt,Agency Staff,24-Oct-22,2223/08,LGE,Y,50%
10051998,HAYS SPECIALIST RECRUITMENT LTD,"1,637.10",Assets & Development,Agency Staff,31-Oct-22,2223/08,LGE,Y,50%
10051998,HAYS SPECIALIST RECRUITMENT LTD,409.28,General/Supervision & Mgmt,Agency Staff,31-Oct-22,2223/08,LGE,Y,50%
10052030,HAYS SPECIALIST RECRUITMENT LTD,"1,120.00",Financial Servs,Agency Staff,01-Nov-22,2223/08,LGE,Y,50%
10052030,HAYS SPECIALIST RECRUITMENT LTD,"1,680.00",HRA Accountancy,Agency Staff,01-Nov-22,2223/08,LGE,Y,50%
10052070,HAYS SPECIALIST RECRUITMENT LTD,"1,750.37",ICT - Finance System,Agency Staff,02-Nov-22,2223/08,LGE,Y,50%
10052201,HAYS SPECIALIST RECRUITMENT LTD,"1,169.36",Assets & Development,Agency Staff,07-Nov-22,2223/08,LGE,Y,50%
10052201,HAYS SPECIALIST RECRUITMENT LTD,292.34,General/Supervision & Mgmt,Agency Staff,07-Nov-22,2223/08,LGE,Y,50%
10052240,HAYS SPECIALIST RECRUITMENT LTD,"1,120.00",Financial Servs,Agency Staff,08-Nov-22,2223/08,LGE,Y,50%
10052240,HAYS SPECIALIST RECRUITMENT LTD,"1,680.00",HRA Accountancy,Agency Staff,08-Nov-22,2223/08,LGE,Y,50%
10052262,HAYS SPECIALIST RECRUITMENT LTD,"1,944.85",ICT - Finance System,Agency Staff,09-Nov-22,2223/08,LGE,Y,50%
10052302,HAYS SPECIALIST RECRUITMENT LTD,"6,169.48",Financial Servs,Recruitment,07-Nov-22,2223/08,LGE,Y,50%
10052379,HAYS SPECIALIST RECRUITMENT LTD,"1,120.00",Financial Servs,Agency Staff,14-Nov-22,2223/08,LGE,Y,50%
10052379,HAYS SPECIALIST RECRUITMENT LTD,"1,680.00",HRA Accountancy,Agency Staff,14-Nov-22,2223/08,LGE,Y,50%
10052418,HAYS SPECIALIST RECRUITMENT LTD,"1,944.85",ICT - Finance System,Agency Staff,16-Nov-22,2223/08,LGE,Y,50%
10052466,HAYS SPECIALIST RECRUITMENT LTD,"1,637.10",Assets & Development,Agency Staff,17-Nov-22,2223/08,LGE,Y,50%
10052466,HAYS SPECIALIST RECRUITMENT LTD,409.28,General/Supervision & Mgmt,Agency Staff,17-Nov-22,2223/08,LGE,Y,50%
10052555,HAYS SPECIALIST RECRUITMENT LTD,"1,931.78",Assets & Development,Agency Staff,22-Nov-22,2223/08,LGE,Y,50%
10052555,HAYS SPECIALIST RECRUITMENT LTD,482.95,General/Supervision & Mgmt,Agency Staff,22-Nov-22,2223/08,LGE,Y,50%
10052582,HAYS SPECIALIST RECRUITMENT LTD,777.94,ICT - Finance System,Agency Staff,23-Nov-22,2223/08,LGE,Y,50%
10052096,RICHARD UTTING ASSOCIATES LLP,"1,889.18",Waldingfield Rd S106 Andersons,Prof & Consultancy Fees,31-Oct-22,2223/08,SME,N,
10052619,NATHANIEL LICHFIELD & PARTNERS LTD,"5,802.88",Devt Policy & Local Plans,Prof & Consultancy Fees,17-Aug-22,2223/08,SME,Y,50%
10052149,PUBLIC SEWER SERVICES,260,Unadopted Drains & Sewers,Repairs,31-Oct-22,2223/08,SME,N,
10052150,PUBLIC SEWER SERVICES,"1,508.69",Building Services,Repairs,31-Oct-22,2223/08,SME,N,
10052151,PUBLIC SEWER SERVICES,"2,215.60",Unadopted Drains & Sewers,Repairs,31-Oct-22,2223/08,SME,N,
10052244,PUBLIC SEWER SERVICES,963.33,Building Services,Repairs,31-Oct-22,2223/08,SME,N,
10052432,PUBLIC SEWER SERVICES,670,Building Services,Repairs,31-Oct-22,2223/08,SME,N,
10052626,PUBLIC SEWER SERVICES,"1,585.49",Building Services,Repairs,24-Nov-22,2223/08,SME,N,
10052627,PUBLIC SEWER SERVICES,"2,195.81",Unadopted Drains & Sewers,Repairs,24-Nov-22,2223/08,SME,N,
10051946,PRIVATE LANDLORD,680,Guaranteed Rent Scheme,Rent Payable,31-Oct-22,2223/08,SME,N,
10052669,PRIVATE LANDLORD,680,Guaranteed Rent Scheme,Rent Payable,28-Nov-22,2223/08,SME,N,
10052055,THE STOWMARKET GLASS COMPANY LTD,665.12,Building Services,Repairs,31-Oct-22,2223/08,SME,N,
10052058,THE STOWMARKET GLASS COMPANY LTD,"3,167.86",Building Services,Repairs,06-Oct-22,2223/08,SME,N,
10052061,THE STOWMARKET GLASS COMPANY LTD,257.5,Building Services,Repairs,12-Oct-22,2223/08,SME,N,
10051996,SUPERSTRUCTURES LTD,550,Structural Works,Prof & Consultancy Fees,31-Oct-22,2223/08,SME,N,
10052300,KNOWLES ASSOCIATES TFM LTD,"3,952.00",Building Services,Vehicle Hire,12-Oct-22,2223/08,SME,Y,50%
10052301,KNOWLES ASSOCIATES TFM LTD,"3,952.00",Building Services,Vehicle Hire,03-Nov-22,2223/08,SME,Y,50%
10051909,NORTHUMBRIAN WATER LTD,69.51,Chilton Depot,Legionella Testing,26-Oct-22,2223/08,LGE,Y,50%
10051909,NORTHUMBRIAN WATER LTD,37.7,HQ Energy,Legionella Testing,26-Oct-22,2223/08,LGE,N,
10051909,NORTHUMBRIAN WATER LTD,293.68,Sheltered Accommodation,Legionella Testing,26-Oct-22,2223/08,LGE,N,
10051909,NORTHUMBRIAN WATER LTD,101.37,Temporary Accommodation,Legionella Testing,26-Oct-22,2223/08,LGE,N,
10051909,NORTHUMBRIAN WATER LTD,254.87,Tenancy Services,Legionella Testing,26-Oct-22,2223/08,LGE,N,
10051909,NORTHUMBRIAN WATER LTD,31.86,Wenham Depot,Legionella Testing,26-Oct-22,2223/08,LGE,Y,50%
10052637,NORTHUMBRIAN WATER LTD,69.51,Chilton Depot,Legionella Testing,25-Nov-22,2223/08,LGE,Y,50%
10052637,NORTHUMBRIAN WATER LTD,37.7,HQ Energy,Legionella Testing,25-Nov-22,2223/08,LGE,N,
10052637,NORTHUMBRIAN WATER LTD,293.68,Sheltered Accommodation,Legionella Testing,25-Nov-22,2223/08,LGE,N,
10052637,NORTHUMBRIAN WATER LTD,101.37,Temporary Accommodation,Legionella Testing,25-Nov-22,2223/08,LGE,N,
10052637,NORTHUMBRIAN WATER LTD,254.87,Tenancy Services,Legionella Testing,25-Nov-22,2223/08,LGE,N,
10052637,NORTHUMBRIAN WATER LTD,31.86,Wenham Depot,Legionella Testing,25-Nov-22,2223/08,LGE,Y,50%
10052277,STORETEC SERVICES LTD,690.4,ICT,"Equipment, Tools & Materials",31-Oct-22,2223/08,SME,Y,50%
10052464,GIPPING OCCUPATIONAL HEALTH LTD,"1,059.38",Health & Safety,Contracted Services,31-Oct-22,2223/08,SME,Y,50%
10052041,AIRMAX REMOTE LTD,437.88,Building Services,Plant & Vehicle - Other costs,31-Oct-22,2223/08,SME,Y,50%
10052002,GRAVITAS RECRUITMENT GROUP LTD,"2,000.00",ICT,Agency Staff,01-Nov-22,2223/08,LGE,Y,50%
10052251,GRAVITAS RECRUITMENT GROUP LTD,"2,500.00",ICT,Agency Staff,09-Nov-22,2223/08,LGE,Y,50%
10052377,GRAVITAS RECRUITMENT GROUP LTD,"2,000.00",ICT,Agency Staff,14-Nov-22,2223/08,LGE,Y,50%
10052614,GRAVITAS RECRUITMENT GROUP LTD,"2,000.00",ICT,Agency Staff,25-Nov-22,2223/08,LGE,Y,50%
10051747,TOP FLOORS (EAST ANGLIA) LTD,983.89,Other Temp Accommodation,"Equipment, Tools & Materials",17-Aug-22,2223/08,SME,N,
10051957,SUDBURYS,825,Guaranteed Rent Scheme,Rent Payable,31-Oct-22,2223/08,SME,N,
10052511,SUDBURYS,440,Guaranteed Rent Scheme,Rent Payable,21-Nov-22,2223/08,SME,N,
10052665,SUDBURYS,825,Guaranteed Rent Scheme,Rent Payable,28-Nov-22,2223/08,SME,N,
10051988,WILLIAM H BROWN ESTATE AGENTS - SUDBURY,925,Guaranteed Rent Scheme,Rent Payable,31-Oct-22,2223/08,SME,N,
10052133,WILLIAM H BROWN ESTATE AGENTS - SUDBURY,725,Guaranteed Rent Scheme,Rent Payable,07-Nov-22,2223/08,SME,N,
10051887,BARCHAM TREES PLC,357,Public Tree Programme,Tree felling/maintenance,24-Oct-22,2223/08,SME,N,
10052594,SOCOTEC UK LIMITED,910.8,Environmental Protection,Contracted Services,24-Nov-22,2223/08,SME,N,
10052316,ABBEYCROFT LEISURE,"7,064.59",Holiday Activity Funding,"Equipment, Tools & Materials",11-Nov-22,2223/08,LGE,N,
10052317,ABBEYCROFT LEISURE,"2,487.80",Holiday Activity Funding,"Equipment, Tools & Materials",11-Nov-22,2223/08,LGE,N,
10052318,ABBEYCROFT LEISURE,"1,575.90",Holiday Activity Funding,"Equipment, Tools & Materials",11-Nov-22,2223/08,LGE,N,
10052319,ABBEYCROFT LEISURE,"17,129.53",Holiday Activity Funding,"Equipment, Tools & Materials",11-Nov-22,2223/08,LGE,N,
10051805,THE WATERFRONT CONFERENCE COMPANY,304.3,Strategic Planning General,Conference Expenses,21-Oct-22,2223/08,SME,Y,50%
10052188,A C LEIGH (NORWICH) LTD,309.72,Building Services,"Equipment, Tools & Materials",02-Nov-22,2223/08,SME,N,
10052622,A C LEIGH (NORWICH) LTD,456.84,Building Services,"Equipment, Tools & Materials",21-Nov-22,2223/08,SME,N,
10052337,3 POINT PROPERTY MANAGEMENT LTD,580,Guaranteed Rent Scheme,Rent Payable,14-Nov-22,2223/08,SME,N,
10052551,FLAGSHIP HOUSING GROUP LTD-RENT ACCOUNT,608.3,Homeless Prevention Fund,Misc Supplies & Services Costs,22-Nov-22,2223/08,LGE,N,
10052247,STAGE EVENT SECURITY LTD,"1,035.00",Open Spaces,Contracted Services,09-Nov-22,2223/08,SME,N,
10052069,APTL ENTERPRISES LTD,"5,506.67",PV Panels,Contracted Services,31-Oct-22,2223/08,SME,N,
10051910,WASHCO LTD,353.25,Sheltered Accommodation,Repairs,26-Oct-22,2223/08,SME,N,
10052463,WASHCO LTD,493.67,Sheltered Accommodation,Repairs,17-Nov-22,2223/08,SME,N,
10051819,ANGLIA COMMERCIAL FLOORING LTD,501.5,Building Services,Repairs,11-Oct-22,2223/08,SME,N,
10051820,ANGLIA COMMERCIAL FLOORING LTD,998.09,Building Services,Repairs,11-Oct-22,2223/08,SME,N,
10051821,ANGLIA COMMERCIAL FLOORING LTD,"1,154.42",Building Services,Repairs,11-Oct-22,2223/08,SME,N,
10051912,ANGLIA COMMERCIAL FLOORING LTD,501.5,Building Services,Repairs,26-Oct-22,2223/08,SME,N,
10051913,ANGLIA COMMERCIAL FLOORING LTD,276.08,Kitchens/Bathrooms,Repairs,26-Oct-22,2223/08,SME,N,
10051914,ANGLIA COMMERCIAL FLOORING LTD,"2,043.78",Building Services,Repairs,26-Oct-22,2223/08,SME,N,
10052267,ANGLIA COMMERCIAL FLOORING LTD,525.78,Voids Maintenance,Repairs,26-Oct-22,2223/08,SME,N,
10052447,ANGLIA COMMERCIAL FLOORING LTD,470.84,Building Services,Repairs,15-Nov-22,2223/08,SME,N,
10052448,ANGLIA COMMERCIAL FLOORING LTD,986.86,Building Services,Repairs,15-Nov-22,2223/08,SME,N,
10052449,ANGLIA COMMERCIAL FLOORING LTD,345.29,Building Services,Repairs,15-Nov-22,2223/08,SME,N,
10052351,ANGLIAN WATER BUS (NAT) LTD T/A WAVE,13.93,Belle Vue House,Water Rates - Metered,12-Nov-22,2223/08,LGE,N,
10052351,ANGLIAN WATER BUS (NAT) LTD T/A WAVE,125.4,C Parks General,Water Rates - Metered,12-Nov-22,2223/08,LGE,N,
10052351,ANGLIAN WATER BUS (NAT) LTD T/A WAVE,532.33,Chilton Depot,Water Rates - Metered,12-Nov-22,2223/08,LGE,Y,50%
10052351,ANGLIAN WATER BUS (NAT) LTD T/A WAVE,4.1,Friars Meadow Sudb,Water Rates - Metered,12-Nov-22,2223/08,LGE,N,
10052351,ANGLIAN WATER BUS (NAT) LTD T/A WAVE,43,General Rechargeable Works,Misc Supplies & Services Costs,12-Nov-22,2223/08,LGE,N,
10052351,ANGLIAN WATER BUS (NAT) LTD T/A WAVE,37.76,HQ Energy,Water Rates - Metered,12-Nov-22,2223/08,LGE,N,
10052351,ANGLIAN WATER BUS (NAT) LTD T/A WAVE,461.87,Public Conveniences,Water Rates - Metered,12-Nov-22,2223/08,LGE,N,
10052351,ANGLIAN WATER BUS (NAT) LTD T/A WAVE,"2,401.53",Sheltered Accommodation,Water Rates - Metered,12-Nov-22,2223/08,LGE,N,
10052351,ANGLIAN WATER BUS (NAT) LTD T/A WAVE,698.87,Temporary Accommodation,Water Rates - Metered,12-Nov-22,2223/08,LGE,N,
10052351,ANGLIAN WATER BUS (NAT) LTD T/A WAVE,163.96,Tenancy Services,Water Rates - Metered,12-Nov-22,2223/08,LGE,N,
10052021,STUDLEY CAPITAL LIMITED,"3,800.00",Hamilton Road Regeneration,Prof & Consultancy Fees,01-Nov-22,2223/08,ST,N,
10052064,GREENACRE RECRUITMENT LTD,"3,849.60",Management Team,Agency Staff,02-Nov-22,2223/08,SME,Y,50%
10052250,GREENACRE RECRUITMENT LTD,"4,151.95",Management Team,Agency Staff,09-Nov-22,2223/08,SME,Y,50%
10052414,GREENACRE RECRUITMENT LTD,"4,127.50",Management Team,Agency Staff,16-Nov-22,2223/08,SME,Y,50%
10052570,GREENACRE RECRUITMENT LTD,"3,202.45",Management Team,Agency Staff,23-Nov-22,2223/08,SME,Y,50%
20028172,ACTON VILLAGE HALL,395.76,Bring Sites,Contributions & Donations,01-Nov-22,2223/08,SME,N,
10052011,TIAA LTD,"4,506.38",Internal Audit,Contracted Services,01-Nov-22,2223/08,SME,Y,50%
10052472,BYCHOICE LTD,"1,800.00",Waldingfield Rd S106 Andersons,Prof & Consultancy Fees,30-Sep-22,2223/08,SME,N,
10052516,BYCHOICE LTD,950,Guaranteed Rent Scheme,Rent Payable,21-Nov-22,2223/08,SME,N,
10051982,LAND USE CONSULTANTS LTD,"3,500.00",Nghbrhd Plan Designations,Prof & Consultancy Fees,28-Oct-22,2223/08,SME,N,
10052656,LAND USE CONSULTANTS LTD,"3,500.00",Nghbrhd Plan Designations,Prof & Consultancy Fees,27-Nov-22,2223/08,SME,N,
10051947,MAN WITH A VAN SUDBURY,755,Homeless Prevention Fund,Removal Expenses,25-Oct-22,2223/08,SME,N,
10052533,REEFER PROPERTIES LTD,695,Guaranteed Rent Scheme,Rent Payable,21-Nov-22,2223/08,SME,N,
10051840,SPRYTAR LTD,"2,000.00",RHSSF,Advertising&mkting (non-staff),11-Mar-22,2223/08,SME,N,
10051850,TOTALMOBILE LTD,"14,880.44",Health & Safety,"Equipment, Tools & Materials",24-Oct-22,2223/08,SME,Y,50%
10052045,ELLISONS SOLICITORS,"5,808.44",Property Acquisition,Prof & Consultancy Fees,27-Oct-22,2223/08,SME,N,
10052396,ELLISONS SOLICITORS,"2,016.67",Bourne Hill Wherstead S106 acq,Prof & Consultancy Fees,25-Oct-22,2223/08,SME,N,
10051944,PRIVATE LANDLORD,515,Guaranteed Rent Scheme,Rent Payable,31-Oct-22,2223/08,SME,N,
10052672,PRIVATE LANDLORD,515,Guaranteed Rent Scheme,Rent Payable,28-Nov-22,2223/08,SME,N,
10052345,ROY M LEWIS,"1,750.00",Devt Management -Applications,Heritage Consultancy ,14-Nov-22,2223/08,ST,N,
10052135,PRIVATE LANDLORD,675,Guaranteed Rent Scheme,Rent Payable,07-Nov-22,2223/08,ST,N,
10052659,PRIVATE LANDLORD,675,Guaranteed Rent Scheme,Rent Payable,28-Nov-22,2223/08,ST,N,
10052518,PRIVATE LANDLORD,700,Guaranteed Rent Scheme,Rent Payable,21-Nov-22,2223/08,SME,N,
10051974,FEILDEN MAWSON  LLP,"7,510.00",Major Imps,Prof & Consultancy Fees,28-Sep-22,2223/08,SME,N,
10052498,FEILDEN MAWSON  LLP,"7,490.00",Major Imps,Prof & Consultancy Fees,31-Aug-22,2223/08,SME,N,
10052499,FEILDEN MAWSON  LLP,725,Major Imps,Prof & Consultancy Fees,31-Oct-22,2223/08,SME,N,
10052531,PRIVATE LANDLORD,"1,198.00",Guaranteed Rent Scheme,Rent Payable,21-Nov-22,2223/08,ST,N,
10052433,BUCHER MUNICIPAL LTD,818.48,Street & Major Road Cleansing,Plant & Vehicle - Other costs,09-Nov-22,2223/08,LGE,Y,50%
10052667,SEQUENCE UK LTD (WILLIAM H BROWN),700,Guaranteed Rent Scheme,Rent Payable,28-Nov-22,2223/08,LGE,N,
10052500,PRIVATE LANDLORD,550,Guaranteed Rent Scheme,Rent Payable,21-Nov-22,2223/08,ST,N,
10052673,PRIVATE LANDLORD,700,Guaranteed Rent Scheme,Rent Payable,28-Nov-22,2223/08,ST,N,
10051945,PRIVATE LANDLORD,490,Guaranteed Rent Scheme,Rent Payable,31-Oct-22,2223/08,SME,N,
10052134,PRIVATE LANDLORD,"1,320.00",Guaranteed Rent Scheme,Rent Payable,07-Nov-22,2223/08,SME,N,
10052214,PRIVATE LANDLORD,450,Guaranteed Rent Scheme,Rent Payable,08-Nov-22,2223/08,ST,N,
10051500,SUFFOLK DOORS & WINDOWS LTD,"3,400.00",Major Imps,Improvements,07-Oct-22,2223/08,SME,N,
10051933,SUFFOLK DOORS & WINDOWS LTD,"9,720.00",Major Imps,Improvements,28-Oct-22,2223/08,SME,N,
10052040,SUFFOLK DOORS & WINDOWS LTD,"2,580.00",Renovation/Home Repair Grants,Grants,02-Nov-22,2223/08,SME,N,
10052266,SUFFOLK DOORS & WINDOWS LTD,"1,200.00",Window & Door Rplcmts,Repairs,17-Oct-22,2223/08,SME,N,
10052441,SUFFOLK DOORS & WINDOWS LTD,"4,240.00",Roofing,Repairs,17-Nov-22,2223/08,SME,N,
10052476,SUFFOLK DOORS & WINDOWS LTD,600,Building Services,Repairs,18-Nov-22,2223/08,SME,N,
10052137,PRIVATE LANDLORD,786.5,Guaranteed Rent Scheme,Rent Payable,07-Nov-22,2223/08,ST,N,
10051986,DAVID KNIGHTS T/A DAVID BROWN,375,Assets & Development,Prof & Consultancy Fees,31-Oct-22,2223/08,ST,N,
10052325,PRIVATE LANDLORD,650,Guaranteed Rent Scheme,Rent Payable,14-Nov-22,2223/08,ST,N,
10052258,CEL SOLICITORS,"1,464.24",Building Services,BMBS Repairs Work,10-Nov-22,2223/08,SME,N,
10052083,COUNTRYSTYLE RECYCLING LTD,"3,837.72",Bring Sites,Contracted Services,31-Oct-22,2223/08,SME,N,
10052095,ANDERSON DESIGN & BUILD LIMITED,"136,251.13",Waldingfield Rd S106 Andersons,Prof & Consultancy Fees,26-Oct-22,2223/08,SME,N,
10052138,PRIVATE LANDLORD,700,Guaranteed Rent Scheme,Rent Payable,07-Nov-22,2223/08,ST,N,
10052144,PRIVATE LANDLORD,800,Guaranteed Rent Scheme,Rent Payable,07-Nov-22,2223/08,ST,N,
10052559,CARE PLUS STAFFORDSHIRE LTD,281.59,Sheltered General Mgmt,Community Alarm Costs,29-Jun-22,2223/08,SME,N,
10052559,CARE PLUS STAFFORDSHIRE LTD,2.5,Homelessness Private Sector,Telephone Costs,29-Jun-22,2223/08,SME,N,
10052559,CARE PLUS STAFFORDSHIRE LTD,21.27,Building Services,Telephone Costs,29-Jun-22,2223/08,SME,N,
10052559,CARE PLUS STAFFORDSHIRE LTD,2.5,Other Public Health Matters,Telephone Costs,29-Jun-22,2223/08,SME,N,
10052559,CARE PLUS STAFFORDSHIRE LTD,2.5,Bldg Control Commercial Income,Telephone Costs,29-Jun-22,2223/08,SME,N,
10052559,CARE PLUS STAFFORDSHIRE LTD,2.52,Civil Protection & Emerg Plg,Telephone Costs,29-Jun-22,2223/08,SME,N,
10052560,CARE PLUS STAFFORDSHIRE LTD,281.59,Sheltered General Mgmt,Community Alarm Costs,05-Oct-22,2223/08,SME,N,
10052560,CARE PLUS STAFFORDSHIRE LTD,2.51,Homelessness Private Sector,Telephone Costs,05-Oct-22,2223/08,SME,N,
10052560,CARE PLUS STAFFORDSHIRE LTD,21.27,Building Services,Telephone Costs,05-Oct-22,2223/08,SME,N,
10052560,CARE PLUS STAFFORDSHIRE LTD,2.51,Other Public Health Matters,Telephone Costs,05-Oct-22,2223/08,SME,N,
10052560,CARE PLUS STAFFORDSHIRE LTD,2.51,Bldg Control Commercial Income,Telephone Costs,05-Oct-22,2223/08,SME,N,
10052560,CARE PLUS STAFFORDSHIRE LTD,2.49,Civil Protection & Emerg Plg,Telephone Costs,05-Oct-22,2223/08,SME,N,
10052640,CARE PLUS STAFFORDSHIRE LTD,"6,566.61",Sheltered General Mgmt,Community Alarm Costs,25-Nov-22,2223/08,SME,N,
10052640,CARE PLUS STAFFORDSHIRE LTD,58.37,Homelessness Private Sector,Telephone Costs,25-Nov-22,2223/08,SME,N,
10052640,CARE PLUS STAFFORDSHIRE LTD,496.15,Building Services,Telephone Costs,25-Nov-22,2223/08,SME,N,
10052640,CARE PLUS STAFFORDSHIRE LTD,58.37,Other Public Health Matters,Telephone Costs,25-Nov-22,2223/08,SME,N,
10052640,CARE PLUS STAFFORDSHIRE LTD,58.37,Bldg Control Commercial Income,Telephone Costs,25-Nov-22,2223/08,SME,N,
10052640,CARE PLUS STAFFORDSHIRE LTD,58.37,Civil Protection & Emerg Plg,Telephone Costs,25-Nov-22,2223/08,SME,N,
10052136,PRIVATE LANDLORD,800,Guaranteed Rent Scheme,Rent Payable,07-Nov-22,2223/08,SME,N,
10052076,ARAN INSULATION LTD,"12,805.62",Insulation Imps,Improvements,31-Oct-22,2223/08,SME,N,
10052180,ARAN INSULATION LTD,902.91,Insulation Imps,Repairs,07-Nov-22,2223/08,SME,N,
10052181,ARAN INSULATION LTD,"1,679.67",Insulation Imps,Improvements,07-Nov-22,2223/08,SME,N,
10052182,ARAN INSULATION LTD,"1,821.37",Insulation Imps,Improvements,07-Nov-22,2223/08,SME,N,
10052204,ARAN INSULATION LTD,"5,045.45",Insulation Imps,Improvements,08-Nov-22,2223/08,SME,N,
10052205,ARAN INSULATION LTD,"2,718.19",Insulation Imps,Improvements,08-Nov-22,2223/08,SME,N,
10052241,ARAN INSULATION LTD,"2,874.19",Insulation Imps,Improvements,09-Nov-22,2223/08,SME,N,
10052269,ARAN INSULATION LTD,812.11,Insulation Imps,Improvements,07-Nov-22,2223/08,SME,N,
10052346,ARAN INSULATION LTD,778.91,Insulation Imps,Improvements,14-Nov-22,2223/08,SME,N,
10052389,ARAN INSULATION LTD,"2,569.57",Insulation Imps,Repairs,15-Nov-22,2223/08,SME,N,
10051353,P TUCKWELL LTD,819.65,Open Spaces,"Equipment, Tools & Materials",30-Sep-22,2223/08,SME,N,
10051956,PRIVATE LANDLORD,500,Guaranteed Rent Scheme,Rent Payable,31-Oct-22,2223/08,ST,N,
10052529,PRIVATE LANDLORD,580,Guaranteed Rent Scheme,Rent Payable,21-Nov-22,2223/08,ST,N,
10052670,PRIVATE LANDLORD,500,Guaranteed Rent Scheme,Rent Payable,28-Nov-22,2223/08,ST,N,
10051802,ELENTEC LTD,"2,499.00",Pld Maint/Enhncmts-Kingfisher,Improvements,18-Oct-22,2223/08,SME,N,
10051958,PRIVATE LANDLORD,575,Guaranteed Rent Scheme,Rent Payable,31-Oct-22,2223/08,ST,N,
10052679,PRIVATE LANDLORD,575,Guaranteed Rent Scheme,Rent Payable,28-Nov-22,2223/08,ST,N,
10052145,IPSERV LTD,"1,578.14",Communications,Commercial Printing,04-Nov-22,2223/08,SME,N,
10052273,CENTRE FOR ALTERNATIVE TECHNOLOGY CHARIT,"3,490.00",Organisational Devt,Training,10-Nov-22,2223/08,SME,Y,50%
10052524,FOURWAYS VEHICLE SOLUTIONS LTD,726.6,Open Spaces,"Equipment, Tools & Materials",13-Oct-22,2223/08,SME,N,
10052525,FOURWAYS VEHICLE SOLUTIONS LTD,726.6,Open Spaces,"Equipment, Tools & Materials",20-Sep-22,2223/08,SME,N,
10052034,START AFRESH CLEANING LTD,8.5,Public Conveniences,Cleaning Materials,31-Oct-22,2223/08,SME,N,
10052034,START AFRESH CLEANING LTD,46,Public Conveniences,Cleaning Materials,31-Oct-22,2223/08,SME,N,
10052034,START AFRESH CLEANING LTD,515.67,Open Spaces,Cleaning Materials,31-Oct-22,2223/08,SME,N,
10052280,REGENCY GUARDING & EVENTS LTD,620,Open Spaces,Contracted Services,07-Nov-22,2223/08,SME,N,
10052343,PRIVATE LANDLORD,715,Guaranteed Rent Scheme,Rent Payable,14-Nov-22,2223/08,SME,N,
10052333,SHJ HOMES LTD,550,Guaranteed Rent Scheme,Rent Payable,14-Nov-22,2223/08,SME,N,
10052532,PRIVATE LANDLORD,500,Guaranteed Rent Scheme,Rent Payable,21-Nov-22,2223/08,ST,N,
10052131,KEYS REMOVALS LTD,469.43,Homeless Prevention Fund,Removal Expenses,04-Nov-22,2223/08,SME,N,
10052336,PRIVATE LANDLORD,675,Guaranteed Rent Scheme,Rent Payable,14-Nov-22,2223/08,ST,N,
10052340,PRIVATE LANDLORD,500,Guaranteed Rent Scheme,Rent Payable,14-Nov-22,2223/08,ST,N,
10051959,SWECO CONSULTING ENGINEERS LTD,"2,865.00",Sheltered Units-Gen.Imp,Prof & Consultancy Fees,28-Oct-22,2223/08,LGE,N,
10052334,PRIVATE LANDLORD,650,Guaranteed Rent Scheme,Rent Payable,14-Nov-22,2223/08,ST,N,
10052501,PRIVATE LANDLORD,650,Guaranteed Rent Scheme,Rent Payable,21-Nov-22,2223/08,ST,N,
10051481,BELL CONTAINER TRADING LTD,672.85,Public Realm TransitionProject,"Equipment, Tools & Materials",26-Sep-22,2223/08,SME,N,
10051886,BELL CONTAINER TRADING LTD,695.27,Public Realm TransitionProject,"Equipment, Tools & Materials",24-Oct-22,2223/08,SME,N,
10052255,CHELMONDISTON PLAYING FIELDS COMMITTEE,"7,905.60",Comm Devt Grants,Grants,09-Nov-22,2223/08,SME,N,
10052252,MINI WASTE LTD,"1,280.00",Open Spaces,Waste Disposal,31-Oct-22,2223/08,SME,N,
10052368,MAXIM SPORTS COACHING,590,Holiday Activity Funding,"Equipment, Tools & Materials",14-Nov-22,2223/08,SME,N,
10052341,PRIVATE LANDLORD,695,Guaranteed Rent Scheme,Rent Payable,14-Nov-22,2223/08,ST,N,
10052009,DLUHC,"31,072.00",RoughSleepersInterventionYr3,Misc Supplies & Services Costs,01-Nov-22,2223/08,LGE,N,
10052335,HAMILTON SMITH LETTINGS,670,Guaranteed Rent Scheme,Rent Payable,14-Nov-22,2223/08,SME,N,
10052147,JB PROPERTY SOLUTIONS (SUFFOLK) LTD T/A,455,Guaranteed Rent Scheme,Rent Payable,07-Nov-22,2223/08,SME,N,
10052344,KBM HOUSE SHARE & PROPERTY MANAGEMENT LT,550,Guaranteed Rent Scheme,Rent Payable,14-Nov-22,2223/08,SME,N,
10052211,PAY 360 LIMITED,"1,153.25",Bank Chgs,Bank Charges,08-Nov-22,2223/08,LGE,Y,50%
10052347,PAY 360 LIMITED,"4,665.82",Bank Chgs,Bank Charges,11-Nov-22,2223/08,LGE,N,
10052342,PRIVATE LANDLORD,550,Guaranteed Rent Scheme,Rent Payable,14-Nov-22,2223/08,SME,N,
10052510,PRIVATE LANDLORD,885,Guaranteed Rent Scheme,Rent Payable,21-Nov-22,2223/08,ST,N,
10052229,ABLE SKILLS LTD,583.33,Building Services,Training,21-Oct-22,2223/08,SME,Y,50%
10052230,ABLE SKILLS LTD,583.33,Building Services,Training,21-Oct-22,2223/08,SME,Y,50%
10052354,HADLEIGH GRAND FEOFFMENT CHARITY,384,Renovation/Home Repair Grants,Grants,14-Nov-22,2223/08,SME,N,
10052355,HADLEIGH GRAND FEOFFMENT CHARITY,497.4,Renovation/Home Repair Grants,Grants,14-Nov-22,2223/08,SME,N,
10052357,HADLEIGH GRAND FEOFFMENT CHARITY,474,Renovation/Home Repair Grants,Grants,14-Nov-22,2223/08,SME,N,
10052358,HADLEIGH GRAND FEOFFMENT CHARITY,366,Renovation/Home Repair Grants,Grants,14-Nov-22,2223/08,SME,N,
10052359,HADLEIGH GRAND FEOFFMENT CHARITY,366,Renovation/Home Repair Grants,Grants,14-Nov-22,2223/08,SME,N,
10052393,A W & D HAMMOND LTD,"1,000.00",Vehicle and Plant Renewals,Plant & Vehicle - Purchase,30-Sep-22,2223/08,LGE,N,
10052394,A W & D HAMMOND LTD,"1,000.00",Vehicle and Plant Renewals,Plant & Vehicle - Purchase,30-Sep-22,2223/08,LGE,N,
10052275,CERTORA TRAINING LTD,266.5,Building Services,Training,10-Nov-22,2223/08,SME,Y,50%
10052276,CERTORA TRAINING LTD,266.5,Building Services,Training,10-Nov-22,2223/08,SME,Y,50%
10052278,CERTORA TRAINING LTD,266.5,Building Services,Training,10-Nov-22,2223/08,SME,Y,50%
10052279,CERTORA TRAINING LTD,257.5,Building Services,Training,10-Nov-22,2223/08,SME,Y,50%
10052384,CERTORA TRAINING LTD,266.5,Building Services,Training,15-Nov-22,2223/08,SME,Y,50%
10052385,CERTORA TRAINING LTD,266.5,Building Services,Training,15-Nov-22,2223/08,SME,Y,50%
10052600,CERTORA TRAINING LTD,266.5,Building Services,Training,15-Nov-22,2223/08,SME,Y,50%
10052601,CERTORA TRAINING LTD,266.5,Building Services,Training,15-Nov-22,2223/08,SME,Y,50%
10052328,PRIVATE LANDLORD,750,Guaranteed Rent Scheme,Rent Payable,14-Nov-22,2223/08,ST,N,
10052530,PRIVATE LANDLORD,575,Guaranteed Rent Scheme,Rent Payable,21-Nov-22,2223/08,ST,N,
10052375,CAPITA IB SOLUTIONS LTD,"2,875.00",Financial Servs,Contracted Services,14-Nov-22,2223/08,LGE,Y,50%
10051882,NEWSQUEST MEDIA GROUP,871.39,Devt Management -Applications,Advertising&mkting (non-staff),19-Oct-22,2223/08,LGE,N,
10052089,NEWSQUEST MEDIA GROUP,655.1,Devt Management -Applications,Advertising&mkting (non-staff),02-Nov-22,2223/08,LGE,N,
10052256,NEWSQUEST MEDIA GROUP,933.2,Devt Management -Applications,Advertising&mkting (non-staff),09-Nov-22,2223/08,LGE,N,
10052548,NEWSQUEST MEDIA GROUP,300.8,Devt Management -Applications,Advertising&mkting (non-staff),31-Oct-22,2223/08,LGE,N,
10052571,NEWSQUEST MEDIA GROUP,716.9,Devt Management -Applications,Advertising&mkting (non-staff),23-Nov-22,2223/08,LGE,N,
10051926,SHOTLEY ROSE BOWLS CLUB,500,Grants & Contrbns,Contributions & Donations,27-Oct-22,2223/08,SME,N,
20028197,P & T KELLING PROPERTY,"1,000.00",Household Support Grant,Misc Supplies & Services Costs,24-Nov-22,2223/08,SME,N,
10052315,BELL DECORATING GROUP LTD,"16,384.89",Planned Maint - Ext Painting,Major Contracts,11-Nov-22,2223/08,LGE,N,
10052286,J COOK CARPENTRY LTD,755,Tenancy Services,Fire Prevention,08-Nov-22,2223/08,SME,N,
10052257,MARKS CONSULTING PARTNERS LIMTED,"1,020.00",Building Servs Tech Staff,Agency Staff,09-Nov-22,2223/08,SME,Y,50%
10052413,MARKS CONSULTING PARTNERS LIMTED,"1,700.00",Building Servs Tech Staff,Agency Staff,16-Nov-22,2223/08,SME,Y,50%
10052572,MARKS CONSULTING PARTNERS LIMTED,"1,700.00",Building Servs Tech Staff,Agency Staff,23-Nov-22,2223/08,SME,Y,50%
10052032,TONY DONNELLAN ROOFING & GEN BUILDERS LT,"6,052.05",Renovation/Home Repair Grants,Grants,02-Nov-22,2223/08,SME,N,
10052249,BLUE FOX TECHNOLOGY LTD,500,Devt Policy & Local Plans,Training,08-Nov-22,2223/08,SME,Y,50%
10052085,RAMSEY MOORE LETTINGS SOLUTIONS,"2,261.53",Rent Deposit Scheme,Misc Premises Costs,03-Nov-22,2223/08,SME,N,
20028183,PRIVATE LANDLORD,450,Rent Deposit Scheme,Misc Premises Costs,04-Nov-22,2223/08,ST,N,
10052263,BROWN BUILDERS,"4,821.00",Mand Disabled Facilities Grant,Grants,10-Nov-22,2223/08,SME,N,
10052624,BEAM UP LTD,"30,000.00",RoughSleepersInterventionYr3,Misc Supplies & Services Costs,30-Nov-22,2223/08,SME,N,
10052479,A B CONTRACTS,"5,950.00",Mand Disabled Facilities Grant,Grants,18-Nov-22,2223/08,ST,N,
10052668,CAPEL ST MARY METHODIST CHURCH,"1,482.00",CCB Warm Spaces,"Equipment, Tools & Materials",28-Nov-22,2223/08,SME,N,
10052621,BILDESTON SPORTS FIELD,"1,435.36",CCB Warm Spaces,"Equipment, Tools & Materials",25-Nov-22,2223/08,SME,N,
10052636,ANSELL CENTRE CHARITY,"1,050.00",CCB Warm Spaces,"Equipment, Tools & Materials",25-Nov-22,2223/08,SME,N,
302,BUTTON & TURNER LTD,170.77,Open Spaces,Plant & Vehicle - Other costs,14-Nov-22,2223/08,SME,N,
20028185,BUTTON & TURNER LTD,-170.77,Open Spaces,Plant & Vehicle - Other costs,24-Oct-22,2223/08,SME,N,
20028187,BUTTON & TURNER LTD,-368.77,Open Spaces,Plant & Vehicle - Other costs,14-Oct-22,2223/08,SME,N,
303,COMPUTERSHARE ,-413,Current Assets,ChildCare Vouchers-Control,25-Nov-22,2223/08,LGE,N,
1081,EAST BERGHOLT PARISH COUNCIL,-499.27,Grants & Contrbns,Contributions & Donations,17-Nov-22,2223/08,SME,N,
1074,SUFFOLK COUNTY COUNCIL,-261.01,ICT,Software Licences (Corporate) ,01-Sep-22,2223/08,LGE,Y,50%
10052281,NORTHERN HOUSING CONSORTIUM,-135.65,General/Supervision & Mgmt,Subscriptions,10-Nov-22,2223/08,SME,N,
20028182,KNOWLES ASSOCIATES TFM LTD,"-1,595.00",Public Realm TransitionProject,"Equipment, Tools & Materials",21-Sep-22,2223/08,SME,N,
1073,PAY 360 LIMITED,-64.8,Bank Chgs,Bank Charges,31-Oct-21,2223/08,LGE,N,
EBX0045231,PAY 360 LIMITED,64.8,Current Assets,LLOYDS GENERAL PAYMENTS,01-Nov-22,2223/08,LGE,N,
